Workbook

Sheet В35
A1: В35 | B1: 2022-06-15 | D1: 16 | O1: Уровнение градуировочной зависимости | Z1: r < 0,7 | AC1: Sт < 0,15
O2: ="Rн = " & FIXED(AP16,2) & " * H + " & FIXED(AO18,2) -> Rн = 2,90 * H + -67,67 | Z2: =SUM(AU16:AU47)/(SQRT(SUM(AV16:AV47))*SQRT(SUM(AW16:AW47))) -> 0.8017986274 | AC2: =(SQRT(SUM(AR16:AR47)/(COUNT(AR16:AR47)-2))*1.5)-SQRT(SUM(AR16:AR47)/(COUNT(AR16:AR47)-1)) -> 1.908616909
B3: Инженер строительной лаборатории: | S3: 6.1.7 | T3: МИН | U3: МАКС
B4: / И.П. Собакин / | T4: =INDEX('Условие 6.1.7'!C3:C83,MATCH(W14,'Условие 6.1.7'!B3:B83,1)) -> 0.7 | U4: =INDEX('Условие 6.1.7'!D3:D83,MATCH(W14,'Условие 6.1.7'!C3:C83,1)) -> 1.2 | V4: ="- от "&ROUND(T5,2)&" МПа до "&ROUND(U5,2)&" МПа, "&VLOOKUP(T4,'Условие 6.1.7'!C3:E83,3) -> - от 38,79 МПа до 66,49 МПа, среднего значения прочности бетона при ≤ 80 Мпа
T5: =T4*W14 -> 38.78787847 | U5: =U4*W14 -> 66.49350595
B13: Отбраковывается | F13: Hmin | N13: Hmax | R13: ср.зн.H | U13: cр.зн Rф | AC13: Уровнение градуировочной зависимости
F14: =MIN(F16:O47) -> 37 | N14: =MAX(F16:O47) -> 49 | R14: =SUM(R16:R47)/COUNT(R16:R47) -> 42.67046131 | U14: =SUM(U16:U42)/COUNT(U16:U42) -> 55.87569259 | W14: =SUM(W16:W47)/COUNT(W16:W47) -> 55.41125496 | AC14: ="Rн = " & FIXED( AG16,2) & " * H + " & FIXED(AF18,2) -> Rн = 1,38 * H + -3,04
B15: Если требуется дополнить количество более 32 то следует дополнить строки во внутрь существующей таблицы | C15: Наименьшее значение для отбраковки | D15: Наибольшее значение для отбраковки | E15: № | F15: 1 | G15: 2 | H15: 3 | I15: 4 | J15: 5 | K15: 6 | L15: 7 | M15: 8 | N15: 9 | O15: 10 | P15: max | Q15: min | R15: Среднее значение по склерометру | S15: Разделение на группы | T15: Разрушающая нагрузга Пресс в КН Значение ПИБ в КН | U15: Показания Riф (Мпа) | V15: До отбраковки RiH | W15: После отбраковки RiH | X15: До отбраковки RiH-Riф/Sт | Y15: После отбраковки RiH-Riф/Sт | Z15: Примечание | AB15: Промежуточные данные для расчета а1 | AH15: Sт | AK15: Промежуточные данные для расчета а1 | AQ15: Sт | AT15: Коэффициент корреляции град.зависимости | AZ15: значение по склерометру | BA15: Факт | BB15: До отбраковки | BC15: После отбраковки | BD15: Отбраковкованные значения
C16: =IFERROR(IF(P16>4,LARGE(F16:O16,1),""),"") ->  | D16: =IFERROR(IF(Q16>4,SMALL(F16:O16,1),""),"") ->  | E16: 1 | F16: 42 | G16: 40 | H16: 42 | I16: 43 | J16: 40 | K16: 41 | L16: 44 | M16: 38 | N16: 41 | O16: 40 | P16: =IFERROR(MAX(F16:O16)-AVERAGE(F16:O16),"") -> 2.9 | Q16: =IFERROR(AVERAGE(F16:O16)-MIN(F16:O16),"") -> 3.1 | R16: =IFERROR(AVERAGE(F16:O16),"") -> 41.1 | S16: =IF(R16="","",IF(R16<=$R$14,1,2)) -> 1 | T16: 561.79 | U16: =IF(Расчет[[#This Row],[Разрушающая нагрузга Пресс в КН Значение ПИБ в КН]]="","",((Расчет[[#This Row],[Разрушающая нагрузга Пресс в КН Значение ПИБ в КН]]*10)/100)*0.95) -> 53.37005 | V16: =IFERROR($AG$16*R16+($AF$18),"") -> 53.70724774 | W16: =IF(Z16="Отбраковывается","",IFERROR($AP$16*R16+($AO$18),"")) -> 51.32852133 | X16: =IF(V16="","",(V16-U16)/SQRT(SUM($AI$16:$AI$47)/(COUNT($AI$16:$AI$47)-2))) -> 0.0618471658 | Y16: =IF(W16="","",(W16-U16)/SQRT(SUM($AR$16:$AR$47)/(COUNT($AR$16:$AR$47)-2))) -> -0.5564299383 | AB16: 1 | AC16: =IFERROR((R16-$R$14)*(U16-$U$14),"") -> 3.935014747 | AD16: =IFERROR(POWER((R16-$R$14),2),"") -> 2.466348725 | AE16: а1= | AF16: =SUM(AC16:AC47) -> 143.0235894 | AG16: =AF16/AF17 -> 1.380769354 | AH16: 1 | AI16: =IFERROR(POWER(U16-V16,2),"") -> 0.1137023191 | AK16: 1 | AL16: =IF(Z16="Отбраковывается","",IFERROR((R16-$R$14)*(U16-$U$14),"")) -> 3.935014747 | AM16: =IF(Z16="Отбраковывается","",IFERROR(POWER((R16-$R$14),2),"")) -> 2.466348725 | AN16: а1= | AO16: =SUM(AL16:AL47) -> 199.1080163 | AP16: =AO16/AO17 -> 2.895436667 | AQ16: 1 | AR16: =IFERROR(POWER(U16-W16,2),"") -> 4.167839301 | AT16: 1 | AU16: =IFERROR((W16-$W$14)*(U16-$W$14),"") -> 8.333696141 | AV16: =IFERROR(POWER((W16-$W$14),2),"") -> 16.66871389 | AW16: =IF(AV16="","",POWER((U16-$W$14),2)) -> 4.166517695 | AY16: 1 | AZ16: =IF(R16="","",R16) -> 41.1 | BA16: =Расчет[[#This Row],[Показания Riф (Мпа)]] -> 53.37005 | BB16: =IF(V16="","",V16) -> 53.70724774 | BC16: =IFERROR(Расчет[[#This Row],[После отбраковки RiH]],) -> 51.32852133
C17: =IFERROR(IF(P17>4,LARGE(F17:O17,1),""),"") ->  | D17: =IFERROR(IF(Q17>4,SMALL(F17:O17,1),""),"") ->  | E17: 2 | F17: 44 | H17: 42 | I17: 43 | J17: 41 | L17: 40 | M17: 46 | N17: 43 | P17: =IFERROR(MAX(F17:O17)-AVERAGE(F17:O17),"") -> 3.285714286 | Q17: =IFERROR(AVERAGE(F17:O17)-MIN(F17:O17),"") -> 2.714285714 | R17: =IFERROR(AVERAGE(F17:O17),"") -> 42.71428571 | S17: 2 | T17: 571.55 | U17: =IF(Расчет[[#This Row],[Разрушающая нагрузга Пресс в КН Значение ПИБ в КН]]="","",((Расчет[[#This Row],[Разрушающая нагрузга Пресс в КН Значение ПИБ в КН]]*10)/100)*0.95) -> 54.29725 | V17: =IFERROR($AG$16*R17+($AF$18),"") -> 55.93620399 | W17: =IF(Z17="Отбраковывается","",IFERROR($AP$16*R17+($AO$18),"")) -> 56.00258338 | X17: 0.300608947 | Y17: 0.4647980521 | AB17: 2 | AC17: -0.06917430707 | AD17: 0.001920578453 | AF17: =SUM(AD16:AD47) -> 103.5825346 | AH17: 2 | AI17: =IFERROR(POWER(U17-V17,2),"") -> 2.686170174 | AK17: 2 | AL17: -0.06917430707 | AM17: 0.001920578453 | AO17: =SUM(AM16:AM47) -> 68.76614451 | AQ17: 2 | AR17: =IFERROR(POWER(U17-W17,2),"") -> 2.908161941 | AT17: 2 | AU17: -0.6587427932 | AV17: 0.3496692997 | AW17: 1.241007054 | AY17: 2 | AZ17: =IF(R17="","",R17) -> 42.71428571 | BA17: =Расчет[[#This Row],[Показания Riф (Мпа)]] -> 54.29725 | BB17: =IF(V17="","",V17) -> 55.93620399 | BC17: =IFERROR(Расчет[[#This Row],[После отбраковки RiH]],) -> 56.00258338
E18: 3 | F18: 41 | G18: 41 | H18: 44 | I18: 42 | J18: 40 | K18: 41 | L18: 46 | M18: 41 | N18: 43 | O18: 42 | P18: 3.9 | Q18: 2.1 | R18: 42.1 | S18: 1 | T18: 531.9 | U18: =IF(Расчет[[#This Row],[Разрушающая нагрузга Пресс в КН Значение ПИБ в КН]]="","",((Расчет[[#This Row],[Разрушающая нагрузга Пресс в КН Значение ПИБ в КН]]*10)/100)*0.95) -> 50.5305 | V18: 55.0880171 | W18: 54.223958 | X18: 0.8359175587 | Y18: 1.006672421 | AB18: 3 | AC18: 3.049225566 | AD18: 0.3254261057 | AE18: а0= | AF18: =U14-AG16*R14 -> -3.042372703 | AH18: 3 | AI18: 20.77096211 | AK18: 3 | AL18: 3.049225566 | AM18: 0.3254261057 | AN18: а0= | AO18: =U14-AP16*R14 -> -67.67392569 | AQ18: 3 | AR18: 13.641632 | AT18: 3 | AU18: 5.794905537 | AV18: 1.409674076 | AW18: 23.82176899 | AY18: 3 | AZ18: 42.1 | BA18: =Расчет[[#This Row],[Показания Riф (Мпа)]] -> 50.5305 | BB18: 55.0880171 | BC18: =IFERROR(Расчет[[#This Row],[После отбраковки RiH]],) -> 54.223958
E19: 4 | F19: 45 | G19: 40 | H19: 42 | I19: 39 | J19: 39 | K19: 42 | L19: 38 | M19: 41 | N19: 45 | O19: 40 | P19: 3.9 | Q19: 3.1 | R19: 41.1 | S19: 1 | T19: 531.53 | U19: =IF(Расчет[[#This Row],[Разрушающая нагрузга Пресс в КН Значение ПИБ в КН]]="","",((Расчет[[#This Row],[Разрушающая нагрузга Пресс в КН Значение ПИБ в КН]]*10)/100)*0.95) -> 50.49535 | V19: 53.70724774 | W19: 51.32852133 | X19: 0.5891106195 | Y19: 0.2270854583 | AB19: 4 | AC19: 8.449619874 | AD19: 2.466348725 | AH19: 4 | AI19: 10.31628712 | AK19: 4 | AL19: 8.449619874 | AM19: 2.466348725 | AQ19: 4 | AR19: 0.6941744691 | AT19: 4 | AU19: 20.0703305 | AV19: 16.66871389 | AW19: 24.16612159 | AY19: 4 | AZ19: 41.1 | BA19: =Расчет[[#This Row],[Показания Riф (Мпа)]] -> 50.49535 | BB19: 53.70724774 | BC19: =IFERROR(Расчет[[#This Row],[После отбраковки RiH]],) -> 51.32852133
E20: 5 | F20: 45 | G20: 49 | H20: 46 | I20: 44 | J20: 44 | K20: 45 | L20: 43 | M20: 44 | N20: 48 | O20: 43 | P20: 3.9 | Q20: 2.1 | R20: 45.1 | S20: 2 | T20: 501.46 | U20: =IF(Расчет[[#This Row],[Разрушающая нагрузга Пресс в КН Значение ПИБ в КН]]="","",((Расчет[[#This Row],[Разрушающая нагрузга Пресс в КН Значение ПИБ в КН]]*10)/100)*0.95) -> 47.6387 | V20: 59.23032516 | X20: 2.126079353 | Z20: Отбраковывается | AB20: 5 | AC20: -20.0120922 | AD20: 5.902658249 | AH20: 5 | AI20: 134.3657739 | AK20: 5 | AQ20: 5 | AT20: 5 | AY20: 5 | AZ20: 45.1 | BA20: =Расчет[[#This Row],[Показания Riф (Мпа)]] -> 47.6387 | BB20: 59.23032516 | BD20: =IF(W20="",BA20,"") -> 47.6387
E21: 6 | F21: 40 | G21: 41 | H21: 44 | J21: 41 | K21: 44 | L21: 40 | M21: 44 | N21: 42 | O21: 44 | P21: 1.777777778 | Q21: 2.222222222 | R21: 42.22222222 | S21: 1 | T21: 526.42 | U21: =IF(Расчет[[#This Row],[Разрушающая нагрузга Пресс в КН Значение ПИБ в КН]]="","",((Расчет[[#This Row],[Разрушающая нагрузга Пресс в КН Значение ПИБ в КН]]*10)/100)*0.95) -> 50.0099 | V21: 55.2567778 | W21: 54.5778447 | X21: 0.9623567359 | Y21: 1.245018613 | AB21: 6 | AC21: 2.629277518 | AD21: 0.2009182794 | AH21: 6 | AI21: 27.52972662 | AK21: 6 | AL21: 2.629277518 | AM21: 0.2009182794 | AQ21: 6 | AR21: 20.86611881 | AT21: 6 | AU21: 4.501544632 | AV21: 0.6945726583 | AW21: 29.17463542 | AY21: 6 | AZ21: 42.22222222 | BA21: =Расчет[[#This Row],[Показания Riф (Мпа)]] -> 50.0099 | BB21: 55.2567778 | BC21: =IFERROR(Расчет[[#This Row],[После отбраковки RiH]],) -> 54.5778447
E22: 7 | F22: 42 | G22: 42 | H22: 40 | I22: 40 | J22: 46 | K22: 41 | L22: 43 | M22: 42 | N22: 42 | P22: 4 | Q22: 2 | R22: 42 | S22: 1 | T22: 534.82 | U22: =IF(Расчет[[#This Row],[Разрушающая нагрузга Пресс в КН Значение ПИБ в КН]]="","",((Расчет[[#This Row],[Разрушающая нагрузга Пресс в КН Значение ПИБ в КН]]*10)/100)*0.95) -> 50.8079 | V22: 54.94994016 | W22: 53.93441433 | X22: 0.7597128055 | Y22: 0.8521487868 | AB22: 7 | AC22: 3.397758858 | AD22: 0.4495183676 | AH22: 7 | AI22: 17.15649672 | AK22: 7 | AL22: 3.397758858 | AM22: 0.4495183676 | AQ22: 7 | AR22: 9.775091874 | AT22: 7 | AU22: 6.798421635 | AV22: 2.181058242 | AW22: 21.1908769 | AY22: 7 | AZ22: 42 | BA22: =Расчет[[#This Row],[Показания Riф (Мпа)]] -> 50.8079 | BB22: 54.94994016 | BC22: =IFERROR(Расчет[[#This Row],[После отбраковки RiH]],) -> 53.93441433
E23: 8 | F23: 40 | G23: 41 | H23: 40 | I23: 39 | J23: 44 | K23: 39 | L23: 40 | M23: 44 | N23: 42 | O23: 40 | P23: 3.1 | Q23: 1.9 | R23: 40.9 | S23: 1 | T23: 490.03 | U23: =IF(Расчет[[#This Row],[Разрушающая нагрузга Пресс в КН Значение ПИБ в КН]]="","",((Расчет[[#This Row],[Разрушающая нагрузга Пресс в КН Значение ПИБ в КН]]*10)/100)*0.95) -> 46.55285 | V23: 53.43109387 | W23: 50.749434 | X23: 1.261573945 | Y23: 1.143802197 | AB23: 8 | AC23: 16.5057321 | AD23: 3.134533249 | AH23: 8 | AI23: 47.31023879 | AK23: 8 | AL23: 16.5057321 | AM23: 3.134533249 | AQ23: 8 | AR23: 17.61131726 | AT23: 8 | AU23: 41.29629795 | AV23: 21.73257469 | AW23: 78.47133846 | AY23: 8 | AZ23: 40.9 | BA23: =Расчет[[#This Row],[Показания Riф (Мпа)]] -> 46.55285 | BB23: 53.43109387 | BC23: =IFERROR(Расчет[[#This Row],[После отбраковки RiH]],) -> 50.749434
E24: 9 | F24: 45 | H24: 48 | I24: 48 | J24: 44 | K24: 44 | L24: 45 | M24: 46 | N24: 45 | O24: 47 | P24: 2.222222222 | Q24: 1.777777778 | R24: 45.77777778 | S24: 2 | T24: 721.26 | U24: =IF(Расчет[[#This Row],[Разрушающая нагрузга Пресс в КН Значение ПИБ в КН]]="","",((Расчет[[#This Row],[Разрушающая нагрузга Пресс в КН Значение ПИБ в КН]]*10)/100)*0.95) -> 68.5197 | V24: 60.16617994 | W24: 64.87273063 | X24: -1.532161907 | Y24: -0.9940016874 | AB24: 9 | AC24: 39.28893244 | AD24: 9.655415634 | AH24: 9 | AI24: 69.78129731 | AK24: 9 | AL24: 39.28893244 | AM24: 9.655415634 | AQ24: 9 | AR24: 13.30038557 | AT24: 9 | AU24: 124.0252338 | AV24: 89.51952186 | AW24: 171.8313313 | AY24: 9 | AZ24: 45.77777778 | BA24: =Расчет[[#This Row],[Показания Riф (Мпа)]] -> 68.5197 | BB24: 60.16617994 | BC24: =IFERROR(Расчет[[#This Row],[После отбраковки RiH]],) -> 64.87273063
E25: 10 | F25: 44 | G25: 45 | H25: 42 | I25: 43 | K25: 46 | L25: 45 | M25: 47 | N25: 42 | O25: 48 | P25: 3.333333333 | Q25: 2.666666667 | R25: 44.66666667 | S25: 2 | T25: 659.28 | U25: =IF(Расчет[[#This Row],[Разрушающая нагрузга Пресс в КН Значение ПИБ в КН]]="","",((Расчет[[#This Row],[Разрушающая нагрузга Пресс в КН Значение ПИБ в КН]]*10)/100)*0.95) -> 62.6316 | V25: 58.63199177 | W25: 61.65557878 | X25: -0.7335886342 | Y25: -0.2660199861 | AB25: 10 | AC25: 13.48617856 | AD25: 3.984835828 | AH25: 10 | AI25: 15.99686596 | AK25: 10 | AL25: 13.48617856 | AM25: 3.984835828 | AQ25: 10 | AR25: 0.9526174236 | AT25: 10 | AU25: 45.08617249 | AV25: 38.99157994 | AW25: 52.13338247 | AY25: 10 | AZ25: 44.66666667 | BA25: =Расчет[[#This Row],[Показания Riф (Мпа)]] -> 62.6316 | BB25: 58.63199177 | BC25: =IFERROR(Расчет[[#This Row],[После отбраковки RiH]],) -> 61.65557878
E26: 11 | F26: 40 | G26: 40 | H26: 41 | I26: 39 | J26: 45 | K26: 44 | L26: 40 | M26: 41 | O26: 40 | P26: 3.888888889 | Q26: 2.111111111 | R26: 41.11111111 | S26: 1 | T26: 643.3 | U26: =IF(Расчет[[#This Row],[Разрушающая нагрузга Пресс в КН Значение ПИБ в КН]]="","",((Расчет[[#This Row],[Разрушающая нагрузга Пресс в КН Значение ПИБ в КН]]*10)/100)*0.95) -> 61.1135 | V26: 53.72258963 | X26: -1.355604734 | Z26: Отбраковывается | AB26: 11 | AC26: -8.16757602 | AD26: 2.431573041 | AH26: 11 | AI26: 54.62555615 | AK26: 11 | AQ26: 11 | AT26: 11 | AY26: 11 | AZ26: 41.11111111 | BA26: =Расчет[[#This Row],[Показания Riф (Мпа)]] -> 61.1135 | BB26: 53.72258963 | BD26: 61.1135
E27: 12 | F27: 43 | G27: 41 | H27: 39 | I27: 40 | J27: 41 | K27: 40 | L27: 42 | M27: 41 | P27: 2.125 | Q27: 1.875 | R27: 40.875 | S27: 1 | T27: 674.06 | U27: =IF(Расчет[[#This Row],[Разрушающая нагрузга Пресс в КН Значение ПИБ в КН]]="","",((Расчет[[#This Row],[Разрушающая нагрузга Пресс в КН Значение ПИБ в КН]]*10)/100)*0.95) -> 64.0357 | V27: 53.39657464 | X27: -1.951376485 | Z27: Отбраковывается | AB27: 12 | AC27: -14.65097759 | AD27: 3.223681314 | AH27: 12 | AI27: 113.1909884 | AK27: 12 | AQ27: 12 | AT27: 12 | AY27: 12 | AZ27: 40.875 | BA27: =Расчет[[#This Row],[Показания Riф (Мпа)]] -> 64.0357 | BB27: 53.39657464 | BD27: 64.0357
E28: 13 | F28: 44 | J28: 42 | K28: 41 | L28: 43 | M28: 39 | O28: 41 | P28: 2.333333333 | Q28: 2.666666667 | R28: 41.66666667 | S28: 1 | T28: 559.84 | U28: =IF(Расчет[[#This Row],[Разрушающая нагрузга Пресс в КН Значение ПИБ в КН]]="","",((Расчет[[#This Row],[Разрушающая нагрузга Пресс в КН Значение ПИБ в КН]]*10)/100)*0.95) -> 53.1848 | V28: 54.48968371 | W28: 52.96926878 | X28: 0.2393354064 | Y28: -0.05874422774 | AB28: 13 | AC28: 2.701103569 | AD28: 1.007603685 | AH28: 13 | AI28: 1.702721502 | AK28: 13 | AL28: 2.701103569 | AM28: 1.007603685 | AQ28: 13 | AR28: 0.046453708 | AT28: 13 | AU28: 5.436972256 | AV28: 5.963296525 | AW28: 4.957101696 | AY28: 13 | AZ28: 41.66666667 | BA28: =Расчет[[#This Row],[Показания Riф (Мпа)]] -> 53.1848 | BB28: 54.48968371 | BC28: =IFERROR(Расчет[[#This Row],[После отбраковки RiH]],) -> 52.96926878
E29: 14 | F29: 43 | G29: 39 | H29: 46 | I29: 41 | J29: 45 | K29: 42 | L29: 44 | M29: 43 | N29: 44 | O29: 42 | P29: 3.1 | Q29: 3.9 | R29: 42.9 | S29: 2 | T29: 530.91 | U29: =IF(Расчет[[#This Row],[Разрушающая нагрузга Пресс в КН Значение ПИБ в КН]]="","",((Расчет[[#This Row],[Разрушающая нагрузга Пресс в КН Значение ПИБ в КН]]*10)/100)*0.95) -> 50.43645 | V29: 56.19263258 | W29: 56.54030733 | X29: 1.055770936 | Y29: 1.663640101 | AB29: 14 | AC29: -1.248516622 | AD29: 0.05268801043 | AH29: 14 | AI29: 33.13363792 | AK29: 14 | AL29: -1.248516622 | AM29: 0.05268801043 | AQ29: 14 | AR29: 37.25707435 | AT29: 14 | AU29: -5.616815342 | AV29: 1.274759259 | AW29: 24.74868441 | AY29: 14 | AZ29: 42.9 | BA29: =Расчет[[#This Row],[Показания Riф (Мпа)]] -> 50.43645 | BB29: 56.19263258 | BC29: =IFERROR(Расчет[[#This Row],[После отбраковки RiH]],) -> 56.54030733
E30: 15 | F30: 44 | G30: 43 | I30: 42 | J30: 40 | K30: 43 | L30: 46 | M30: 42 | N30: 43 | O30: 42 | P30: 3.222222222 | Q30: 2.777777778 | R30: 42.77777778 | S30: 2 | T30: 632.94 | U30: =IF(Расчет[[#This Row],[Разрушающая нагрузга Пресс в КН Значение ПИБ в КН]]="","",((Расчет[[#This Row],[Разрушающая нагрузга Пресс в КН Значение ПИБ в КН]]*10)/100)*0.95) -> 60.1293 | V30: 56.02387188 | W30: 56.18642063 | X30: -0.7529976025 | Y30: -1.074653596 | AB30: 15 | AC30: 0.4564821243 | AD30: 0.01151682436 | AH30: 15 | AI30: 16.85454002 | AK30: 15 | AL30: 0.4564821243 | AM30: 0.01151682436 | AQ30: 15 | AR30: 15.54629773 | AT30: 15 | AU30: 3.657266535 | AV30: 0.6008818132 | AW30: 22.25994898 | AY30: 15 | AZ30: 42.77777778 | BA30: =Расчет[[#This Row],[Показания Riф (Мпа)]] -> 60.1293 | BB30: 56.02387188 | BC30: =IFERROR(Расчет[[#This Row],[После отбраковки RiH]],) -> 56.18642063
E31: 16 | F31: 43 | G31: 42 | H31: 38 | I31: 43 | J31: 42 | K31: 39 | L31: 38 | M31: 43 | O31: 42 | P31: 1.888888889 | Q31: 3.111111111 | R31: 41.11111111 | S31: 1 | T31: 589.37 | U31: =IF(Расчет[[#This Row],[Разрушающая нагрузга Пресс в КН Значение ПИБ в КН]]="","",((Расчет[[#This Row],[Разрушающая нагрузга Пресс в КН Значение ПИБ в КН]]*10)/100)*0.95) -> 55.99015 | V31: 53.72258963 | W31: 51.36069285 | X31: -0.4159048645 | Y31: -1.26178417 | AB31: 16 | AC31: -0.178479181 | AD31: 2.431573041 | AH31: 16 | AI31: 5.141830047 | AK31: 16 | AL31: -0.178479181 | AM31: 2.431573041 | AQ31: 16 | AR31: 21.4318735 | AT31: 16 | AU31: -2.344850309 | AV31: 16.40705341 | AW31: 0.3351194655 | AY31: 16 | AZ31: 41.11111111 | BA31: =Расчет[[#This Row],[Показания Riф (Мпа)]] -> 55.99015 | BB31: 53.72258963 | BC31: =IFERROR(Расчет[[#This Row],[После отбраковки RiH]],) -> 51.36069285
E32: 17 | H32: 42 | I32: 43 | J32: 41 | L32: 43 | M32: 43 | O32: 44 | P32: 1.333333333 | Q32: 1.666666667 | R32: 42.66666667 | S32: 1 | T32: 548.2 | U32: =IF(Расчет[[#This Row],[Разрушающая нагрузга Пресс в КН Значение ПИБ в КН]]="","",((Расчет[[#This Row],[Разрушающая нагрузга Пресс в КН Значение ПИБ в КН]]*10)/100)*0.95) -> 52.079 | V32: 55.87045307 | W32: 55.86470544 | X32: 0.69540983 | Y32: 1.031814973 | AB32: 17 | AC32: 0.01440709243 | AD32: 1.439931441e-05 | AH32: 17 | AI32: 14.37511635 | AK32: 17 | AL32: 0.01440709243 | AM32: 1.439931441e-05 | AQ32: 17 | AR32: 14.33156571 | AT32: 17 | AU32: -1.511012622 | AV32: 0.2056173405 | AW32: 11.10392313 | AY32: 17 | AZ32: 42.66666667 | BA32: =Расчет[[#This Row],[Показания Riф (Мпа)]] -> 52.079 | BB32: 55.87045307 | BC32: =IFERROR(Расчет[[#This Row],[После отбраковки RiH]],) -> 55.86470544
E33: 18 | F33: 46 | G33: 42 | H33: 43 | I33: 41 | K33: 44 | L33: 42 | N33: 43 | O33: 41 | P33: 3.25 | Q33: 1.75 | R33: 42.75 | S33: 2 | T33: 581.29 | U33: =IF(Расчет[[#This Row],[Разрушающая нагрузга Пресс в КН Значение ПИБ в КН]]="","",((Расчет[[#This Row],[Разрушающая нагрузга Пресс в КН Значение ПИБ в КН]]*10)/100)*0.95) -> 55.22255 | V33: 55.98551718 | W33: 56.10599183 | X33: 0.1399397189 | Y33: 0.2407869616 | AB33: 18 | AC33: -0.05195010651 | AD33: 0.006326403283 | AH33: 18 | AI33: 0.582118916 | AK33: 18 | AL33: -0.05195010651 | AM33: 0.006326403283 | AQ33: 18 | AR33: 0.7804694731 | AT33: 18 | AU33: -0.1311002947 | AV33: 0.4826593212 | AW33: 0.03560956252 | AY33: 18 | AZ33: 42.75 | BA33: =Расчет[[#This Row],[Показания Riф (Мпа)]] -> 55.22255 | BB33: 55.98551718 | BC33: =IFERROR(Расчет[[#This Row],[После отбраковки RiH]],) -> 56.10599183
E34: 19 | H34: 46 | J34: 45 | K34: 46 | L34: 44 | M34: 46 | N34: 46 | O34: 48 | P34: 2.142857143 | Q34: 1.857142857 | R34: 45.85714286 | S34: 2 | T34: 568.53 | U34: =IF(Расчет[[#This Row],[Разрушающая нагрузга Пресс в КН Значение ПИБ в КН]]="","",((Расчет[[#This Row],[Разрушающая нагрузга Пресс в КН Значение ПИБ в КН]]*10)/100)*0.95) -> 54.01035 | V34: 60.27576481 | X34: 1.149171828 | Z34: Отбраковывается | AB34: 19 | AC34: -5.94425282 | AD34: 10.15493929 | AH34: 19 | AI34: 39.2554228 | AK34: 19 | AQ34: 19 | AT34: 19 | AY34: 19 | AZ34: 45.85714286 | BA34: =Расчет[[#This Row],[Показания Riф (Мпа)]] -> 54.01035 | BB34: 60.27576481 | BD34: 54.01035
E35: 20 | F35: 39 | G35: 41 | H35: 43 | I35: 40 | J35: 42 | L35: 40 | M35: 39 | N35: 42 | P35: 2.25 | Q35: 1.75 | R35: 40.75 | S35: 1 | T35: 543.23 | U35: =IF(Расчет[[#This Row],[Разрушающая нагрузга Пресс в КН Значение ПИБ в КН]]="","",((Расчет[[#This Row],[Разрушающая нагрузга Пресс в КН Значение ПИБ в КН]]*10)/100)*0.95) -> 51.60685 | V35: 53.22397847 | W35: 50.3151185 | X35: 0.2966058172 | Y35: -0.3520685704 | AB35: 20 | AC35: 8.198147036 | AD35: 3.688171641 | AH35: 20 | AI35: 2.615104492 | AK35: 20 | AL35: 8.198147036 | AM35: 3.688171641 | AQ35: 20 | AR35: 1.668570271 | AT35: 20 | AU35: 19.38776684 | AV35: 25.97060685 | AW35: 14.47349711 | AY35: 20 | AZ35: 40.75 | BA35: =Расчет[[#This Row],[Показания Riф (Мпа)]] -> 51.60685 | BB35: 53.22397847 | BC35: =IFERROR(Расчет[[#This Row],[После отбраковки RiH]],) -> 50.3151185
E36: 21 | G36: 41 | H36: 39 | I36: 42 | J36: 41 | K36: 45 | L36: 42 | M36: 45 | N36: 43 | O36: 39 | P36: 3.111111111 | Q36: 2.888888889 | R36: 41.88888889 | S36: 1 | T36: 568.11 | U36: =IF(Расчет[[#This Row],[Разрушающая нагрузга Пресс в КН Значение ПИБ в КН]]="","",((Расчет[[#This Row],[Разрушающая нагрузга Пресс в КН Значение ПИБ в КН]]*10)/100)*0.95) -> 53.97045 | V36: 54.79652135 | W36: 53.61269915 | X36: 0.1515139775 | Y36: -0.09750697495 | AB36: 21 | AC36: 1.489085065 | AD36: 0.6108554487 | AH36: 21 | AI36: 0.6823938692 | AK36: 21 | AL36: 1.489085065 | AM36: 0.6108554487 | AQ36: 21 | AR36: 0.1279856723 | AT36: 21 | AU36: 2.59136814 | AV36: 3.234803016 | AW36: 2.075918937 | AY36: 21 | AZ36: 41.88888889 | BA36: =Расчет[[#This Row],[Показания Riф (Мпа)]] -> 53.97045 | BB36: 54.79652135 | BC36: =IFERROR(Расчет[[#This Row],[После отбраковки RiH]],) -> 53.61269915
E37: 22 | F37: 43 | G37: 38 | H37: 37 | J37: 39 | K37: 43 | L37: 37 | M37: 43 | N37: 40 | O37: 39 | P37: 3.111111111 | Q37: 2.888888889 | R37: 39.88888889 | S37: 1 | T37: 575.23 | U37: =IF(Расчет[[#This Row],[Разрушающая нагрузга Пресс в КН Значение ПИБ в КН]]="","",((Расчет[[#This Row],[Разрушающая нагрузга Пресс в КН Значение ПИБ в КН]]*10)/100)*0.95) -> 54.64685 | V37: 52.03498264 | W37: 47.82182581 | X37: -0.4790559731 | Y37: -1.860198119 | AB37: 22 | AC37: 3.418114665 | AD37: 7.737145131 | AH37: 22 | AI37: 6.821851115 | AK37: 22 | AL37: 3.418114665 | AM37: 7.737145131 | AQ37: 22 | AR37: 46.58095515 | AT37: 22 | AU37: 5.801397297 | AV37: 57.5994348 | AW37: 0.5843149453 | AY37: 22 | AZ37: 39.88888889 | BA37: =Расчет[[#This Row],[Показания Riф (Мпа)]] -> 54.64685 | BB37: 52.03498264 | BC37: =IFERROR(Расчет[[#This Row],[После отбраковки RiH]],) -> 47.82182581
E38: 23 | F38: 42 | G38: 41 | I38: 40 | J38: 46 | K38: 39 | L38: 44 | M38: 42 | N38: 46 | O38: 43 | P38: 3.444444444 | Q38: 3.555555556 | R38: 42.55555556 | S38: 1 | T38: 576.57 | U38: =IF(Расчет[[#This Row],[Разрушающая нагрузга Пресс в КН Значение ПИБ в КН]]="","",((Расчет[[#This Row],[Разрушающая нагрузга Пресс в КН Значение ПИБ в КН]]*10)/100)*0.95) -> 54.77415 | V38: 55.71703425 | W38: 55.54299026 | X38: 0.1729392304 | Y38: 0.2095516682 | AB38: 23 | AC38: 0.1265735821 | AD38: 0.0132033323 | AH38: 23 | AI38: 0.8890307069 | AK38: 23 | AL38: 0.1265735821 | AM38: 0.0132033323 | AQ38: 23 | AR38: 0.5911153443 | AT38: 23 | AU38: -0.08392921178 | AV38: 0.01735418866 | AW38: 0.4059027321 | AY38: 23 | AZ38: 42.55555556 | BA38: =Расчет[[#This Row],[Показания Riф (Мпа)]] -> 54.77415 | BB38: 55.71703425 | BC38: =IFERROR(Расчет[[#This Row],[После отбраковки RiH]],) -> 55.54299026
E39: 24 | F39: 44 | G39: 46 | H39: 46 | I39: 43 | J39: 42 | K39: 40 | L39: 43 | M39: 44 | N39: 43 | O39: 42 | P39: 2.7 | Q39: 3.3 | R39: 43.3 | S39: 2 | T39: 648.29 | U39: =IF(Расчет[[#This Row],[Разрушающая нагрузга Пресс в КН Значение ПИБ в КН]]="","",((Расчет[[#This Row],[Разрушающая нагрузга Пресс в КН Значение ПИБ в КН]]*10)/100)*0.95) -> 61.58755 | V39: 56.74494032 | W39: 57.698482 | X39: -0.8882078488 | Y39: -1.059987009 | AB39: 24 | AC39: 3.595835232 | AD39: 0.3963189628 | AH39: 24 | AI39: 23.45086848 | AK39: 24 | AL39: 3.595835232 | AM39: 0.3963189628 | AQ39: 24 | AR39: 15.1248499 | AT39: 24 | AU39: 14.12658901 | AV39: 5.231407528 | AW39: 38.1466204 | AY39: 24 | AZ39: 43.3 | BA39: =Расчет[[#This Row],[Показания Riф (Мпа)]] -> 61.58755 | BB39: 56.74494032 | BC39: =IFERROR(Расчет[[#This Row],[После отбраковки RiH]],) -> 57.698482
E40: 25 | F40: 43 | G40: 45 | H40: 44 | I40: 47 | J40: 48 | K40: 47 | L40: 46 | M40: 48 | N40: 47 | O40: 45 | P40: 2 | Q40: 3 | R40: 46 | S40: 2 | T40: 587.2 | U40: =IF(Расчет[[#This Row],[Разрушающая нагрузга Пресс в КН Значение ПИБ в КН]]="","",((Расчет[[#This Row],[Разрушающая нагрузга Пресс в КН Значение ПИБ в КН]]*10)/100)*0.95) -> 55.784 | V40: 60.47301758 | X40: 0.8600367354 | Z40: Отбраковывается | AB40: 25 | AC40: -0.3052940347 | AD40: 11.08582789 | AH40: 25 | AI40: 21.98688586 | AK40: 25 | AQ40: 25 | AT40: 25 | AY40: 25 | AZ40: 46 | BA40: =Расчет[[#This Row],[Показания Riф (Мпа)]] -> 55.784 | BB40: 60.47301758 | BD40: 55.784
E41: 26 | F41: 47 | G41: 48 | H41: 47 | I41: 45 | J41: 46 | K41: 45 | L41: 47 | M41: 45 | N41: 47 | O41: 46 | P41: 1.7 | Q41: 1.3 | R41: 46.3 | S41: 2 | T41: 701.26 | U41: =IF(Расчет[[#This Row],[Разрушающая нагрузга Пресс в КН Значение ПИБ в КН]]="","",((Расчет[[#This Row],[Разрушающая нагрузга Пресс в КН Значение ПИБ в КН]]*10)/100)*0.95) -> 66.6197 | V41: 60.88724839 | W41: 66.384792 | X41: -1.051418317 | Y41: -0.06402547496 | AB41: 26 | AC41: 38.99579058 | AD41: 13.17355111 | AH41: 26 | AI41: 32.86100151 | AK41: 26 | AL41: 38.99579058 | AM41: 13.17355111 | AQ41: 26 | AR41: 0.05518176732 | AT41: 26 | AU41: 122.9962868 | AV41: 120.4185152 | AW41: 125.6292402 | AY41: 26 | AZ41: 46.3 | BA41: =Расчет[[#This Row],[Показания Riф (Мпа)]] -> 66.6197 | BB41: 60.88724839 | BC41: =IFERROR(Расчет[[#This Row],[После отбраковки RiH]],) -> 66.384792
E42: 27 | F42: 48 | G42: 47 | H42: 45 | I42: 49 | J42: 42 | K42: 46 | L42: 42 | M42: 47 | N42: 46 | O42: 45 | P42: 3.3 | Q42: 3.7 | R42: 45.7 | S42: 2 | T42: 722.09 | U42: =IF(Расчет[[#This Row],[Разрушающая нагрузга Пресс в КН Значение ПИБ в КН]]="","",((Расчет[[#This Row],[Разрушающая нагрузга Пресс в КН Значение ПИБ в КН]]*10)/100)*0.95) -> 68.59855 | V42: 60.05878677 | W42: 64.64753 | X42: -1.566321722 | Y42: -1.076872369 | AB42: 27 | AC42: 38.54438877 | AD42: 9.178104677 | AH42: 27 | AI42: 72.92755597 | AK42: 27 | AL42: 38.54438877 | AM42: 9.178104677 | AQ42: 27 | AR42: 15.61055902 | AT42: 27 | AU42: 121.801484 | AV42: 85.30877662 | AW42: 173.9047504 | AY42: 27 | AZ42: 45.7 | BA42: =Расчет[[#This Row],[Показания Riф (Мпа)]] -> 68.59855 | BB42: 60.05878677 | BC42: =IFERROR(Расчет[[#This Row],[После отбраковки RiH]],) -> 64.64753
E43: 28 | F43: 43 | G43: 44 | H43: 46 | I43: 43 | J43: 44 | K43: 45 | L43: 45 | M43: 42 | N43: 42 | O43: 42 | P43: 2.4 | Q43: 1.6 | R43: 43.6 | S43: 2 | T43: 645.7 | U43: =IF(Расчет[[#This Row],[Разрушающая нагрузга Пресс в КН Значение ПИБ в КН]]="","",((Расчет[[#This Row],[Разрушающая нагрузга Пресс в КН Значение ПИБ в КН]]*10)/100)*0.95) -> 61.3415 | V43: 57.15917113 | W43: 58.567113 | X43: -0.7671023636 | Y43: -0.756174533 | AB43: 28 | AC43: 5.08067946 | AD43: 0.8640421771 | AH43: 28 | AI43: 17.49187478 | AK43: 28 | AL43: 5.08067946 | AM43: 0.8640421771 | AQ43: 28 | AR43: 7.697223222 | AT43: 28 | AU43: 18.71501148 | AV43: 9.959439963 | AW43: 35.16780622 | AY43: 28 | AZ43: 43.6 | BA43: =Расчет[[#This Row],[Показания Riф (Мпа)]] -> 61.3415 | BB43: 57.15917113 | BC43: =IFERROR(Расчет[[#This Row],[После отбраковки RiH]],) -> 58.567113
E44: 29 | F44: 44 | H44: 40 | I44: 41 | J44: 43 | K44: 40 | M44: 40 | N44: 43 | O44: 39 | P44: 2.75 | Q44: 2.25 | R44: 41.25 | S44: 1 | T44: 640.07 | U44: =IF(Расчет[[#This Row],[Разрушающая нагрузга Пресс в КН Значение ПИБ в КН]]="","",((Расчет[[#This Row],[Разрушающая нагрузга Пресс в КН Значение ПИБ в КН]]*10)/100)*0.95) -> 60.80665 | V44: 53.91436315 | X44: -1.26414964 | Z44: Отбраковывается | AB44: 29 | AC44: -7.004234216 | AD44: 2.017710332 | AH44: 29 | AI44: 47.50361805 | AK44: 29 | AQ44: 29 | AT44: 29 | AY44: 29 | AZ44: 41.25 | BA44: =Расчет[[#This Row],[Показания Riф (Мпа)]] -> 60.80665 | BB44: 53.91436315 | BD44: 60.80665
E45: 30 | F45: 38 | G45: 40 | H45: 44 | I45: 40 | J45: 37 | K45: 39 | L45: 42 | M45: 40 | N45: 40 | O45: 41 | P45: 3.9 | Q45: 3.1 | R45: 40.1 | S45: 1 | T45: 568.68 | U45: =IF(Расчет[[#This Row],[Разрушающая нагрузга Пресс в КН Значение ПИБ в КН]]="","",((Расчет[[#This Row],[Разрушающая нагрузга Пресс в КН Значение ПИБ в КН]]*10)/100)*0.95) -> 54.0246 | V45: 52.32647839 | W45: 48.43308467 | X45: -0.3114611836 | Y45: -1.523998454 | AB45: 30 | AC45: 4.75816189 | AD45: 6.607271344 | AH45: 30 | AI45: 2.883616999 | AK45: 30 | AL45: 4.75816189 | AM45: 6.607271344 | AQ45: 30 | AR45: 31.26504374 | AT45: 30 | AU45: 9.676314464 | AV45: 48.69486069 | AW45: 1.922811982 | AY45: 30 | AZ45: 40.1 | BA45: =Расчет[[#This Row],[Показания Riф (Мпа)]] -> 54.0246 | BB45: 52.32647839 | BC45: =IFERROR(Расчет[[#This Row],[После отбраковки RiH]],) -> 48.43308467
E46: 31 | F46: 42 | G46: 42 | H46: 41 | I46: 44 | J46: 44 | K46: 43 | L46: 42 | M46: 43 | N46: 41 | O46: 44 | P46: 1.4 | Q46: 1.6 | R46: 42.6 | S46: 1 | T46: 630.84 | U46: =IF(Расчет[[#This Row],[Разрушающая нагрузга Пресс в КН Значение ПИБ в КН]]="","",((Расчет[[#This Row],[Разрушающая нагрузга Пресс в КН Значение ПИБ в КН]]*10)/100)*0.95) -> 59.9298 | V46: 55.77840178 | W46: 55.67167633 | X46: -0.7614292154 | Y46: -1.160575174 | AB46: 31 | AC46: -0.2856577169 | AD46: 0.00496479614 | AH46: 31 | AI46: 17.23410722 | AK46: 31 | AL46: -0.2856577169 | AM46: 0.00496479614 | AQ46: 31 | AR46: 18.13161716 | AT46: 31 | AU46: 1.176725697 | AV46: 0.06781929089 | AW46: 20.41724926 | AY46: 31 | AZ46: 42.6 | BA46: =Расчет[[#This Row],[Показания Riф (Мпа)]] -> 59.9298 | BB46: 55.77840178 | BC46: =IFERROR(Расчет[[#This Row],[После отбраковки RiH]],) -> 55.67167633
E47: 32 | F47: 43 | G47: 41 | H47: 42 | K47: 42 | L47: 42 | M47: 41 | N47: 43 | O47: 43 | P47: 0.875 | Q47: 1.125 | R47: 42.125 | S47: 1 | T47: 533.72 | U47: =IF(Расчет[[#This Row],[Разрушающая нагрузга Пресс в КН Значение ПИБ в КН]]="","",((Расчет[[#This Row],[Разрушающая нагрузга Пресс в КН Значение ПИБ в КН]]*10)/100)*0.95) -> 50.7034 | V47: 55.12253633 | W47: 54.29634392 | X47: 0.8105364334 | Y47: 0.9792767515 | AB47: 32 | AC47: 2.821285491 | AD47: 0.2975280402 | AH47: 32 | AI47: 19.52876593 | AK47: 32 | AL47: 2.821285491 | AM47: 0.2975280402 | AQ47: 32 | AR47: 12.90924599 | AT47: 32 | AU47: 5.248839496 | AV47: 1.243026639 | AW47: 22.16389834 | AY47: 32 | AZ47: =IF(R47="","",R47) -> 42.125 | BA47: =Расчет[[#This Row],[Показания Riф (Мпа)]] -> 50.7034 | BB47: 55.12253633 | BC47: =IFERROR(Расчет[[#This Row],[После отбраковки RiH]],) -> 54.29634392

Sheet ЗАКЛЮЧЕНИЕ
A4: =VLOOKUP(V8,Логотип!A2:C3,3,FALSE) -> 
V6: УТВЕРЖДАЮ:
V7: Начальник лаборатории
V8: =В35!B2 -> 0
V9: =INDEX(Сотрудники!$C$2:$C$11,MATCH(ЗАКЛЮЧЕНИЕ!$V$8&ЗАКЛЮЧЕНИЕ!$V$7,Сотрудники!$A$2:$A$11&Сотрудники!$B$2:$B$11,0)) -> 
V10: =В35!B1 -> 2022-06-15
A12: =В35!D1 -> 16
A13: построения градуировочной зависимости по контрольным образцам-кубам
A15: ="В испытательной строительной лаборатории "&V8&" "&TEXT(V10,"ДД МММ ГГГГ")&" года, были проведены испытания построения градуировочной зависимости - тарировочной кривой." -> В испытательной строительной лаборатории 0 15 июн 2022 года, были проведены испытания построения градуировочной зависимости - тарировочной кривой.
A16: ="Тарировачная кривая была построена на контрольных образцах-кубах бетона "&MID(CELL("ИМЯФАЙЛА",В35!A15),SEARCH("]",CELL("ИМЯФАЙЛА",В35!A15))+1,20)&"." -> Тарировачная кривая была построена на контрольных образцах-кубах бетона В35.
A17: ="Поставщик бетонной смеси является "&В35!B6&"." -> Поставщик бетонной смеси является .
A18: Контрольные образцы-кубы бетона, были изготовлены в соответствии с ГОСТ 10180-2012.
A19: ="Контрольные образцы были отобраны на строительном объекте "&В35!B7&":" -> Контрольные образцы были отобраны на строительном объекте :
A20: =В35!B8 -> 0
A23: Градуировочная зависимость (косвенная характеристика - прочность) описывается линейным уравнением:
A24: ="Rн = "&FIXED(В35!AP16,2)&" * H + "&FIXED(В35!AO18,2)&"." -> Rн = 2,90 * H + -67,67.
A25: Условия применения градуировочной зависимости:
A26: =В35!V4 -> - от 38,79 МПа до 66,49 МПа, среднего значения прочности бетона при ≤ 80 Мпа
A27: ="- минимальное и максимальное значения косвенной характеристики Нmin = "&MIN(В35!F16:O47)&" и Нmax = "&MAX(В35!F16:O47)&"." -> - минимальное и максимальное значения косвенной характеристики Нmin = 37 и Нmax = 49.
A28: ="- остаточное среднеквадратическое отклонение SТ.H.M. = "&ROUND(В35!AC2,2)&"." -> - остаточное среднеквадратическое отклонение SТ.H.M. = 1,91.
A29: ="- коэффициент корреляции градуировочной зависимости r = "&ROUND(В35!Z2,2)&"." -> - коэффициент корреляции градуировочной зависимости r = 0,8.
A31: Результаты испытаний контрольных образцов бетона в Приложении №1.
A32: Методика устонавления градуировочной зависимости приведены в Приложении №2.
A33: График тарировочной кривой в Приложении №3.
A40: =В35!B3 -> Инженер строительной лаборатории: | V40: =В35!B4 -> / И.П. Собакин /
A43: Примечание:
A44: =В35!B9 -> 0
A45: =В35!B10 -> 0
A48: ПРИЛОЖЕНИЕ №1
A49: Результаты испытаний контрольных образцов кубов
A50: Наименьшее значение для отбраковки | B50: Наибольшее значение для отбраковки | C50: № | D50: 1 | E50: 2 | F50: 3 | G50: 4 | H50: 5 | I50: 6 | J50: 7 | K50: 8 | L50: 9 | M50: 10 | N50: max | O50: min | P50: Среднее значение по склерометру | Q50: Разделение на группы | R50: Разрушающая нагрузга Пресс в КН Значение ПИБ в КН | S50: Показания Riф (Мпа) | T50: До отбраковки RiH | U50: После отбраковки RiH | V50: До отбраковки RiH-Riф/Sт | W50: После отбраковки RiH-Riф/Sт | X50: Примечание
A51: =INDEX(В35!C$16:C$100,ROW(),COLUMN()) -> 0 | B51: =IF(В35!D16="","",В35!D16) ->  | C51: =IF(В35!E16="","",В35!E16) -> 1 | D51: =IF(В35!F16="","",В35!F16) -> 42 | E51: =IF(В35!G16="","",В35!G16) -> 40 | F51: =IF(В35!H16="","",В35!H16) -> 42 | G51: =IF(В35!I16="","",В35!I16) -> 43 | H51: =IF(В35!J16="","",В35!J16) -> 40 | I51: =IF(В35!K16="","",В35!K16) -> 41 | J51: =IF(В35!L16="","",В35!L16) -> 44 | K51: =IF(В35!M16="","",В35!M16) -> 38 | L51: =IF(В35!N16="","",В35!N16) -> 41 | M51: =IF(В35!O16="","",В35!O16) -> 40 | N51: =IF(В35!P16="","",В35!P16) -> 2.9 | O51: =IF(В35!Q16="","",В35!Q16) -> 3.1 | P51: =IF(В35!R16="","",В35!R16) -> 41.1 | Q51: =IF(В35!S16="","",В35!S16) -> 1 | R51: =IF(В35!T16="","",В35!T16) -> 561.79 | S51: =IF(В35!U16="","",В35!U16) -> 53.37005 | T51: =IF(В35!V16="","",В35!V16) -> 53.70724774 | U51: =IF(В35!W16="","",В35!W16) -> 51.32852133 | V51: =IF(В35!X16="","",В35!X16) -> 0.0618471658 | W51: =IF(В35!Y16="","",В35!Y16) -> -0.5564299383 | X51: =IF(В35!Z16="","",В35!Z16) -> 
A52: =INDEX(В35!C$16:C$100,ROW(),COLUMN()) -> 0 | B52: =IF(В35!D17="","",В35!D17) ->  | C52: =IF(В35!E17="","",В35!E17) -> 2 | D52: =IF(В35!F17="","",В35!F17) -> 44 | E52: =IF(В35!G17="","",В35!G17) ->  | F52: =IF(В35!H17="","",В35!H17) -> 42 | G52: =IF(В35!I17="","",В35!I17) -> 43 | H52: =IF(В35!J17="","",В35!J17) -> 41 | I52: =IF(В35!K17="","",В35!K17) ->  | J52: =IF(В35!L17="","",В35!L17) -> 40 | K52: =IF(В35!M17="","",В35!M17) -> 46 | L52: =IF(В35!N17="","",В35!N17) -> 43 | M52: =IF(В35!O17="","",В35!O17) ->  | N52: =IF(В35!P17="","",В35!P17) -> 3.285714286 | O52: =IF(В35!Q17="","",В35!Q17) -> 2.714285714 | P52: =IF(В35!R17="","",В35!R17) -> 42.71428571 | Q52: =IF(В35!S17="","",В35!S17) -> 2 | R52: =IF(В35!T17="","",В35!T17) -> 571.55 | S52: =IF(В35!U17="","",В35!U17) -> 54.29725 | T52: =IF(В35!V17="","",В35!V17) -> 55.93620399 | U52: =IF(В35!W17="","",В35!W17) -> 56.00258338 | V52: =IF(В35!X17="","",В35!X17) -> 0.300608947 | W52: =IF(В35!Y17="","",В35!Y17) -> 0.4647980521 | X52: =IF(В35!Z17="","",В35!Z17) -> 
A53: =INDEX(В35!C$16:C$100,ROW(),COLUMN()) -> 0 | B53: =IF(В35!D18="","",В35!D18) ->  | C53: =IF(В35!E18="","",В35!E18) -> 3 | D53: =IF(В35!F18="","",В35!F18) -> 41 | E53: =IF(В35!G18="","",В35!G18) -> 41 | F53: =IF(В35!H18="","",В35!H18) -> 44 | G53: =IF(В35!I18="","",В35!I18) -> 42 | H53: =IF(В35!J18="","",В35!J18) -> 40 | I53: =IF(В35!K18="","",В35!K18) -> 41 | J53: =IF(В35!L18="","",В35!L18) -> 46 | K53: =IF(В35!M18="","",В35!M18) -> 41 | L53: =IF(В35!N18="","",В35!N18) -> 43 | M53: =IF(В35!O18="","",В35!O18) -> 42 | N53: =IF(В35!P18="","",В35!P18) -> 3.9 | O53: =IF(В35!Q18="","",В35!Q18) -> 2.1 | P53: =IF(В35!R18="","",В35!R18) -> 42.1 | Q53: =IF(В35!S18="","",В35!S18) -> 1 | R53: =IF(В35!T18="","",В35!T18) -> 531.9 | S53: =IF(В35!U18="","",В35!U18) -> 50.5305 | T53: =IF(В35!V18="","",В35!V18) -> 55.0880171 | U53: =IF(В35!W18="","",В35!W18) -> 54.223958 | V53: =IF(В35!X18="","",В35!X18) -> 0.8359175587 | W53: =IF(В35!Y18="","",В35!Y18) -> 1.006672421 | X53: =IF(В35!Z18="","",В35!Z18) -> 
A54: =INDEX(В35!C$16:C$100,ROW(),COLUMN()) -> 0 | B54: =IF(В35!D19="","",В35!D19) ->  | C54: =IF(В35!E19="","",В35!E19) -> 4 | D54: =IF(В35!F19="","",В35!F19) -> 45 | E54: =IF(В35!G19="","",В35!G19) -> 40 | F54: =IF(В35!H19="","",В35!H19) -> 42 | G54: =IF(В35!I19="","",В35!I19) -> 39 | H54: =IF(В35!J19="","",В35!J19) -> 39 | I54: =IF(В35!K19="","",В35!K19) -> 42 | J54: =IF(В35!L19="","",В35!L19) -> 38 | K54: =IF(В35!M19="","",В35!M19) -> 41 | L54: =IF(В35!N19="","",В35!N19) -> 45 | M54: =IF(В35!O19="","",В35!O19) -> 40 | N54: =IF(В35!P19="","",В35!P19) -> 3.9 | O54: =IF(В35!Q19="","",В35!Q19) -> 3.1 | P54: =IF(В35!R19="","",В35!R19) -> 41.1 | Q54: =IF(В35!S19="","",В35!S19) -> 1 | R54: =IF(В35!T19="","",В35!T19) -> 531.53 | S54: =IF(В35!U19="","",В35!U19) -> 50.49535 | T54: =IF(В35!V19="","",В35!V19) -> 53.70724774 | U54: =IF(В35!W19="","",В35!W19) -> 51.32852133 | V54: =IF(В35!X19="","",В35!X19) -> 0.5891106195 | W54: =IF(В35!Y19="","",В35!Y19) -> 0.2270854583 | X54: =IF(В35!Z19="","",В35!Z19) -> 
A55: =INDEX(В35!C$16:C$100,ROW(),COLUMN()) -> 0 | B55: =IF(В35!D20="","",В35!D20) ->  | C55: =IF(В35!E20="","",В35!E20) -> 5 | D55: =IF(В35!F20="","",В35!F20) -> 45 | E55: =IF(В35!G20="","",В35!G20) -> 49 | F55: =IF(В35!H20="","",В35!H20) -> 46 | G55: =IF(В35!I20="","",В35!I20) -> 44 | H55: =IF(В35!J20="","",В35!J20) -> 44 | I55: =IF(В35!K20="","",В35!K20) -> 45 | J55: =IF(В35!L20="","",В35!L20) -> 43 | K55: =IF(В35!M20="","",В35!M20) -> 44 | L55: =IF(В35!N20="","",В35!N20) -> 48 | M55: =IF(В35!O20="","",В35!O20) -> 43 | N55: =IF(В35!P20="","",В35!P20) -> 3.9 | O55: =IF(В35!Q20="","",В35!Q20) -> 2.1 | P55: =IF(В35!R20="","",В35!R20) -> 45.1 | Q55: =IF(В35!S20="","",В35!S20) -> 2 | R55: =IF(В35!T20="","",В35!T20) -> 501.46 | S55: =IF(В35!U20="","",В35!U20) -> 47.6387 | T55: =IF(В35!V20="","",В35!V20) -> 59.23032516 | U55: =IF(В35!W20="","",В35!W20) ->  | V55: =IF(В35!X20="","",В35!X20) -> 2.126079353 | W55: =IF(В35!Y20="","",В35!Y20) ->  | X55: =IF(В35!Z20="","",В35!Z20) -> Отбраковывается
A56: =INDEX(В35!C$16:C$100,ROW(),COLUMN()) -> 0 | B56: =IF(В35!D21="","",В35!D21) ->  | C56: =IF(В35!E21="","",В35!E21) -> 6 | D56: =IF(В35!F21="","",В35!F21) -> 40 | E56: =IF(В35!G21="","",В35!G21) -> 41 | F56: =IF(В35!H21="","",В35!H21) -> 44 | G56: =IF(В35!I21="","",В35!I21) ->  | H56: =IF(В35!J21="","",В35!J21) -> 41 | I56: =IF(В35!K21="","",В35!K21) -> 44 | J56: =IF(В35!L21="","",В35!L21) -> 40 | K56: =IF(В35!M21="","",В35!M21) -> 44 | L56: =IF(В35!N21="","",В35!N21) -> 42 | M56: =IF(В35!O21="","",В35!O21) -> 44 | N56: =IF(В35!P21="","",В35!P21) -> 1.777777778 | O56: =IF(В35!Q21="","",В35!Q21) -> 2.222222222 | P56: =IF(В35!R21="","",В35!R21) -> 42.22222222 | Q56: =IF(В35!S21="","",В35!S21) -> 1 | R56: =IF(В35!T21="","",В35!T21) -> 526.42 | S56: =IF(В35!U21="","",В35!U21) -> 50.0099 | T56: =IF(В35!V21="","",В35!V21) -> 55.2567778 | U56: =IF(В35!W21="","",В35!W21) -> 54.5778447 | V56: =IF(В35!X21="","",В35!X21) -> 0.9623567359 | W56: =IF(В35!Y21="","",В35!Y21) -> 1.245018613 | X56: =IF(В35!Z21="","",В35!Z21) -> 
A57: =INDEX(В35!C$16:C$100,ROW(),COLUMN()) -> 0 | B57: =IF(В35!D22="","",В35!D22) ->  | C57: =IF(В35!E22="","",В35!E22) -> 7 | D57: =IF(В35!F22="","",В35!F22) -> 42 | E57: =IF(В35!G22="","",В35!G22) -> 42 | F57: =IF(В35!H22="","",В35!H22) -> 40 | G57: =IF(В35!I22="","",В35!I22) -> 40 | H57: =IF(В35!J22="","",В35!J22) -> 46 | I57: =IF(В35!K22="","",В35!K22) -> 41 | J57: =IF(В35!L22="","",В35!L22) -> 43 | K57: =IF(В35!M22="","",В35!M22) -> 42 | L57: =IF(В35!N22="","",В35!N22) -> 42 | M57: =IF(В35!O22="","",В35!O22) ->  | N57: =IF(В35!P22="","",В35!P22) -> 4 | O57: =IF(В35!Q22="","",В35!Q22) -> 2 | P57: =IF(В35!R22="","",В35!R22) -> 42 | Q57: =IF(В35!S22="","",В35!S22) -> 1 | R57: =IF(В35!T22="","",В35!T22) -> 534.82 | S57: =IF(В35!U22="","",В35!U22) -> 50.8079 | T57: =IF(В35!V22="","",В35!V22) -> 54.94994016 | U57: =IF(В35!W22="","",В35!W22) -> 53.93441433 | V57: =IF(В35!X22="","",В35!X22) -> 0.7597128055 | W57: =IF(В35!Y22="","",В35!Y22) -> 0.8521487868 | X57: =IF(В35!Z22="","",В35!Z22) -> 
A58: =INDEX(В35!C$16:C$100,ROW(),COLUMN()) -> 0 | B58: =IF(В35!D23="","",В35!D23) ->  | C58: =IF(В35!E23="","",В35!E23) -> 8 | D58: =IF(В35!F23="","",В35!F23) -> 40 | E58: =IF(В35!G23="","",В35!G23) -> 41 | F58: =IF(В35!H23="","",В35!H23) -> 40 | G58: =IF(В35!I23="","",В35!I23) -> 39 | H58: =IF(В35!J23="","",В35!J23) -> 44 | I58: =IF(В35!K23="","",В35!K23) -> 39 | J58: =IF(В35!L23="","",В35!L23) -> 40 | K58: =IF(В35!M23="","",В35!M23) -> 44 | L58: =IF(В35!N23="","",В35!N23) -> 42 | M58: =IF(В35!O23="","",В35!O23) -> 40 | N58: =IF(В35!P23="","",В35!P23) -> 3.1 | O58: =IF(В35!Q23="","",В35!Q23) -> 1.9 | P58: =IF(В35!R23="","",В35!R23) -> 40.9 | Q58: =IF(В35!S23="","",В35!S23) -> 1 | R58: =IF(В35!T23="","",В35!T23) -> 490.03 | S58: =IF(В35!U23="","",В35!U23) -> 46.55285 | T58: =IF(В35!V23="","",В35!V23) -> 53.43109387 | U58: =IF(В35!W23="","",В35!W23) -> 50.749434 | V58: =IF(В35!X23="","",В35!X23) -> 1.261573945 | W58: =IF(В35!Y23="","",В35!Y23) -> 1.143802197 | X58: =IF(В35!Z23="","",В35!Z23) -> 
A59: =INDEX(В35!C$16:C$100,ROW(),COLUMN()) -> 0 | B59: =IF(В35!D24="","",В35!D24) ->  | C59: =IF(В35!E24="","",В35!E24) -> 9 | D59: =IF(В35!F24="","",В35!F24) -> 45 | E59: =IF(В35!G24="","",В35!G24) ->  | F59: =IF(В35!H24="","",В35!H24) -> 48 | G59: =IF(В35!I24="","",В35!I24) -> 48 | H59: =IF(В35!J24="","",В35!J24) -> 44 | I59: =IF(В35!K24="","",В35!K24) -> 44 | J59: =IF(В35!L24="","",В35!L24) -> 45 | K59: =IF(В35!M24="","",В35!M24) -> 46 | L59: =IF(В35!N24="","",В35!N24) -> 45 | M59: =IF(В35!O24="","",В35!O24) -> 47 | N59: =IF(В35!P24="","",В35!P24) -> 2.222222222 | O59: =IF(В35!Q24="","",В35!Q24) -> 1.777777778 | P59: =IF(В35!R24="","",В35!R24) -> 45.77777778 | Q59: =IF(В35!S24="","",В35!S24) -> 2 | R59: =IF(В35!T24="","",В35!T24) -> 721.26 | S59: =IF(В35!U24="","",В35!U24) -> 68.5197 | T59: =IF(В35!V24="","",В35!V24) -> 60.16617994 | U59: =IF(В35!W24="","",В35!W24) -> 64.87273063 | V59: =IF(В35!X24="","",В35!X24) -> -1.532161907 | W59: =IF(В35!Y24="","",В35!Y24) -> -0.9940016874 | X59: =IF(В35!Z24="","",В35!Z24) -> 
A60: =INDEX(В35!C$16:C$100,ROW(),COLUMN()) -> 0 | B60: =IF(В35!D25="","",В35!D25) ->  | C60: =IF(В35!E25="","",В35!E25) -> 10 | D60: =IF(В35!F25="","",В35!F25) -> 44 | E60: =IF(В35!G25="","",В35!G25) -> 45 | F60: =IF(В35!H25="","",В35!H25) -> 42 | G60: =IF(В35!I25="","",В35!I25) -> 43 | H60: =IF(В35!J25="","",В35!J25) ->  | I60: =IF(В35!K25="","",В35!K25) -> 46 | J60: =IF(В35!L25="","",В35!L25) -> 45 | K60: =IF(В35!M25="","",В35!M25) -> 47 | L60: =IF(В35!N25="","",В35!N25) -> 42 | M60: =IF(В35!O25="","",В35!O25) -> 48 | N60: =IF(В35!P25="","",В35!P25) -> 3.333333333 | O60: =IF(В35!Q25="","",В35!Q25) -> 2.666666667 | P60: =IF(В35!R25="","",В35!R25) -> 44.66666667 | Q60: =IF(В35!S25="","",В35!S25) -> 2 | R60: =IF(В35!T25="","",В35!T25) -> 659.28 | S60: =IF(В35!U25="","",В35!U25) -> 62.6316 | T60: =IF(В35!V25="","",В35!V25) -> 58.63199177 | U60: =IF(В35!W25="","",В35!W25) -> 61.65557878 | V60: =IF(В35!X25="","",В35!X25) -> -0.7335886342 | W60: =IF(В35!Y25="","",В35!Y25) -> -0.2660199861 | X60: =IF(В35!Z25="","",В35!Z25) -> 
A61: =INDEX(В35!C$16:C$100,ROW(),COLUMN()) -> 0 | B61: =IF(В35!D26="","",В35!D26) ->  | C61: =IF(В35!E26="","",В35!E26) -> 11 | D61: =IF(В35!F26="","",В35!F26) -> 40 | E61: =IF(В35!G26="","",В35!G26) -> 40 | F61: =IF(В35!H26="","",В35!H26) -> 41 | G61: =IF(В35!I26="","",В35!I26) -> 39 | H61: =IF(В35!J26="","",В35!J26) -> 45 | I61: =IF(В35!K26="","",В35!K26) -> 44 | J61: =IF(В35!L26="","",В35!L26) -> 40 | K61: =IF(В35!M26="","",В35!M26) -> 41 | L61: =IF(В35!N26="","",В35!N26) ->  | M61: =IF(В35!O26="","",В35!O26) -> 40 | N61: =IF(В35!P26="","",В35!P26) -> 3.888888889 | O61: =IF(В35!Q26="","",В35!Q26) -> 2.111111111 | P61: =IF(В35!R26="","",В35!R26) -> 41.11111111 | Q61: =IF(В35!S26="","",В35!S26) -> 1 | R61: =IF(В35!T26="","",В35!T26) -> 643.3 | S61: =IF(В35!U26="","",В35!U26) -> 61.1135 | T61: =IF(В35!V26="","",В35!V26) -> 53.72258963 | U61: =IF(В35!W26="","",В35!W26) ->  | V61: =IF(В35!X26="","",В35!X26) -> -1.355604734 | W61: =IF(В35!Y26="","",В35!Y26) ->  | X61: =IF(В35!Z26="","",В35!Z26) -> Отбраковывается
A62: =INDEX(В35!C$16:C$100,ROW(),COLUMN()) -> 0 | B62: =IF(В35!D27="","",В35!D27) ->  | C62: =IF(В35!E27="","",В35!E27) -> 12 | D62: =IF(В35!F27="","",В35!F27) -> 43 | E62: =IF(В35!G27="","",В35!G27) -> 41 | F62: =IF(В35!H27="","",В35!H27) -> 39 | G62: =IF(В35!I27="","",В35!I27) -> 40 | H62: =IF(В35!J27="","",В35!J27) -> 41 | I62: =IF(В35!K27="","",В35!K27) -> 40 | J62: =IF(В35!L27="","",В35!L27) -> 42 | K62: =IF(В35!M27="","",В35!M27) -> 41 | L62: =IF(В35!N27="","",В35!N27) ->  | M62: =IF(В35!O27="","",В35!O27) ->  | N62: =IF(В35!P27="","",В35!P27) -> 2.125 | O62: =IF(В35!Q27="","",В35!Q27) -> 1.875 | P62: =IF(В35!R27="","",В35!R27) -> 40.875 | Q62: =IF(В35!S27="","",В35!S27) -> 1 | R62: =IF(В35!T27="","",В35!T27) -> 674.06 | S62: =IF(В35!U27="","",В35!U27) -> 64.0357 | T62: =IF(В35!V27="","",В35!V27) -> 53.39657464 | U62: =IF(В35!W27="","",В35!W27) ->  | V62: =IF(В35!X27="","",В35!X27) -> -1.951376485 | W62: =IF(В35!Y27="","",В35!Y27) ->  | X62: =IF(В35!Z27="","",В35!Z27) -> Отбраковывается
A63: =INDEX(В35!C$16:C$100,ROW(),COLUMN()) -> 0 | B63: =IF(В35!D28="","",В35!D28) ->  | C63: =IF(В35!E28="","",В35!E28) -> 13 | D63: =IF(В35!F28="","",В35!F28) -> 44 | E63: =IF(В35!G28="","",В35!G28) ->  | F63: =IF(В35!H28="","",В35!H28) ->  | G63: =IF(В35!I28="","",В35!I28) ->  | H63: =IF(В35!J28="","",В35!J28) -> 42 | I63: =IF(В35!K28="","",В35!K28) -> 41 | J63: =IF(В35!L28="","",В35!L28) -> 43 | K63: =IF(В35!M28="","",В35!M28) -> 39 | L63: =IF(В35!N28="","",В35!N28) ->  | M63: =IF(В35!O28="","",В35!O28) -> 41 | N63: =IF(В35!P28="","",В35!P28) -> 2.333333333 | O63: =IF(В35!Q28="","",В35!Q28) -> 2.666666667 | P63: =IF(В35!R28="","",В35!R28) -> 41.66666667 | Q63: =IF(В35!S28="","",В35!S28) -> 1 | R63: =IF(В35!T28="","",В35!T28) -> 559.84 | S63: =IF(В35!U28="","",В35!U28) -> 53.1848 | T63: =IF(В35!V28="","",В35!V28) -> 54.48968371 | U63: =IF(В35!W28="","",В35!W28) -> 52.96926878 | V63: =IF(В35!X28="","",В35!X28) -> 0.2393354064 | W63: =IF(В35!Y28="","",В35!Y28) -> -0.05874422774 | X63: =IF(В35!Z28="","",В35!Z28) -> 
A64: =INDEX(В35!C$16:C$100,ROW(),COLUMN()) -> 0 | B64: =IF(В35!D29="","",В35!D29) ->  | C64: =IF(В35!E29="","",В35!E29) -> 14 | D64: =IF(В35!F29="","",В35!F29) -> 43 | E64: =IF(В35!G29="","",В35!G29) -> 39 | F64: =IF(В35!H29="","",В35!H29) -> 46 | G64: =IF(В35!I29="","",В35!I29) -> 41 | H64: =IF(В35!J29="","",В35!J29) -> 45 | I64: =IF(В35!K29="","",В35!K29) -> 42 | J64: =IF(В35!L29="","",В35!L29) -> 44 | K64: =IF(В35!M29="","",В35!M29) -> 43 | L64: =IF(В35!N29="","",В35!N29) -> 44 | M64: =IF(В35!O29="","",В35!O29) -> 42 | N64: =IF(В35!P29="","",В35!P29) -> 3.1 | O64: =IF(В35!Q29="","",В35!Q29) -> 3.9 | P64: =IF(В35!R29="","",В35!R29) -> 42.9 | Q64: =IF(В35!S29="","",В35!S29) -> 2 | R64: =IF(В35!T29="","",В35!T29) -> 530.91 | S64: =IF(В35!U29="","",В35!U29) -> 50.43645 | T64: =IF(В35!V29="","",В35!V29) -> 56.19263258 | U64: =IF(В35!W29="","",В35!W29) -> 56.54030733 | V64: =IF(В35!X29="","",В35!X29) -> 1.055770936 | W64: =IF(В35!Y29="","",В35!Y29) -> 1.663640101 | X64: =IF(В35!Z29="","",В35!Z29) -> 
A65: =INDEX(В35!C$16:C$100,ROW(),COLUMN()) -> 0 | B65: =IF(В35!D30="","",В35!D30) ->  | C65: =IF(В35!E30="","",В35!E30) -> 15 | D65: =IF(В35!F30="","",В35!F30) -> 44 | E65: =IF(В35!G30="","",В35!G30) -> 43 | F65: =IF(В35!H30="","",В35!H30) ->  | G65: =IF(В35!I30="","",В35!I30) -> 42 | H65: =IF(В35!J30="","",В35!J30) -> 40 | I65: =IF(В35!K30="","",В35!K30) -> 43 | J65: =IF(В35!L30="","",В35!L30) -> 46 | K65: =IF(В35!M30="","",В35!M30) -> 42 | L65: =IF(В35!N30="","",В35!N30) -> 43 | M65: =IF(В35!O30="","",В35!O30) -> 42 | N65: =IF(В35!P30="","",В35!P30) -> 3.222222222 | O65: =IF(В35!Q30="","",В35!Q30) -> 2.777777778 | P65: =IF(В35!R30="","",В35!R30) -> 42.77777778 | Q65: =IF(В35!S30="","",В35!S30) -> 2 | R65: =IF(В35!T30="","",В35!T30) -> 632.94 | S65: =IF(В35!U30="","",В35!U30) -> 60.1293 | T65: =IF(В35!V30="","",В35!V30) -> 56.02387188 | U65: =IF(В35!W30="","",В35!W30) -> 56.18642063 | V65: =IF(В35!X30="","",В35!X30) -> -0.7529976025 | W65: =IF(В35!Y30="","",В35!Y30) -> -1.074653596 | X65: =IF(В35!Z30="","",В35!Z30) -> 
A66: =INDEX(В35!C$16:C$100,ROW(),COLUMN()) -> 0 | B66: =IF(В35!D31="","",В35!D31) ->  | C66: =IF(В35!E31="","",В35!E31) -> 16 | D66: =IF(В35!F31="","",В35!F31) -> 43 | E66: =IF(В35!G31="","",В35!G31) -> 42 | F66: =IF(В35!H31="","",В35!H31) -> 38 | G66: =IF(В35!I31="","",В35!I31) -> 43 | H66: =IF(В35!J31="","",В35!J31) -> 42 | I66: =IF(В35!K31="","",В35!K31) -> 39 | J66: =IF(В35!L31="","",В35!L31) -> 38 | K66: =IF(В35!M31="","",В35!M31) -> 43 | L66: =IF(В35!N31="","",В35!N31) ->  | M66: =IF(В35!O31="","",В35!O31) -> 42 | N66: =IF(В35!P31="","",В35!P31) -> 1.888888889 | O66: =IF(В35!Q31="","",В35!Q31) -> 3.111111111 | P66: =IF(В35!R31="","",В35!R31) -> 41.11111111 | Q66: =IF(В35!S31="","",В35!S31) -> 1 | R66: =IF(В35!T31="","",В35!T31) -> 589.37 | S66: =IF(В35!U31="","",В35!U31) -> 55.99015 | T66: =IF(В35!V31="","",В35!V31) -> 53.72258963 | U66: =IF(В35!W31="","",В35!W31) -> 51.36069285 | V66: =IF(В35!X31="","",В35!X31) -> -0.4159048645 | W66: =IF(В35!Y31="","",В35!Y31) -> -1.26178417 | X66: =IF(В35!Z31="","",В35!Z31) -> 
A67: =INDEX(В35!C$16:C$100,ROW(),COLUMN()) -> 0 | B67: =IF(В35!D32="","",В35!D32) ->  | C67: =IF(В35!E32="","",В35!E32) -> 17 | D67: =IF(В35!F32="","",В35!F32) ->  | E67: =IF(В35!G32="","",В35!G32) ->  | F67: =IF(В35!H32="","",В35!H32) -> 42 | G67: =IF(В35!I32="","",В35!I32) -> 43 | H67: =IF(В35!J32="","",В35!J32) -> 41 | I67: =IF(В35!K32="","",В35!K32) ->  | J67: =IF(В35!L32="","",В35!L32) -> 43 | K67: =IF(В35!M32="","",В35!M32) -> 43 | L67: =IF(В35!N32="","",В35!N32) ->  | M67: =IF(В35!O32="","",В35!O32) -> 44 | N67: =IF(В35!P32="","",В35!P32) -> 1.333333333 | O67: =IF(В35!Q32="","",В35!Q32) -> 1.666666667 | P67: =IF(В35!R32="","",В35!R32) -> 42.66666667 | Q67: =IF(В35!S32="","",В35!S32) -> 1 | R67: =IF(В35!T32="","",В35!T32) -> 548.2 | S67: =IF(В35!U32="","",В35!U32) -> 52.079 | T67: =IF(В35!V32="","",В35!V32) -> 55.87045307 | U67: =IF(В35!W32="","",В35!W32) -> 55.86470544 | V67: =IF(В35!X32="","",В35!X32) -> 0.69540983 | W67: =IF(В35!Y32="","",В35!Y32) -> 1.031814973 | X67: =IF(В35!Z32="","",В35!Z32) -> 
A68: =INDEX(В35!C$16:C$100,ROW(),COLUMN()) -> 0 | B68: =IF(В35!D33="","",В35!D33) ->  | C68: =IF(В35!E33="","",В35!E33) -> 18 | D68: =IF(В35!F33="","",В35!F33) -> 46 | E68: =IF(В35!G33="","",В35!G33) -> 42 | F68: =IF(В35!H33="","",В35!H33) -> 43 | G68: =IF(В35!I33="","",В35!I33) -> 41 | H68: =IF(В35!J33="","",В35!J33) ->  | I68: =IF(В35!K33="","",В35!K33) -> 44 | J68: =IF(В35!L33="","",В35!L33) -> 42 | K68: =IF(В35!M33="","",В35!M33) ->  | L68: =IF(В35!N33="","",В35!N33) -> 43 | M68: =IF(В35!O33="","",В35!O33) -> 41 | N68: =IF(В35!P33="","",В35!P33) -> 3.25 | O68: =IF(В35!Q33="","",В35!Q33) -> 1.75 | P68: =IF(В35!R33="","",В35!R33) -> 42.75 | Q68: =IF(В35!S33="","",В35!S33) -> 2 | R68: =IF(В35!T33="","",В35!T33) -> 581.29 | S68: =IF(В35!U33="","",В35!U33) -> 55.22255 | T68: =IF(В35!V33="","",В35!V33) -> 55.98551718 | U68: =IF(В35!W33="","",В35!W33) -> 56.10599183 | V68: =IF(В35!X33="","",В35!X33) -> 0.1399397189 | W68: =IF(В35!Y33="","",В35!Y33) -> 0.2407869616 | X68: =IF(В35!Z33="","",В35!Z33) -> 
A69: =INDEX(В35!C$16:C$100,ROW(),COLUMN()) -> 0 | B69: =IF(В35!D34="","",В35!D34) ->  | C69: =IF(В35!E34="","",В35!E34) -> 19 | D69: =IF(В35!F34="","",В35!F34) ->  | E69: =IF(В35!G34="","",В35!G34) ->  | F69: =IF(В35!H34="","",В35!H34) -> 46 | G69: =IF(В35!I34="","",В35!I34) ->  | H69: =IF(В35!J34="","",В35!J34) -> 45 | I69: =IF(В35!K34="","",В35!K34) -> 46 | J69: =IF(В35!L34="","",В35!L34) -> 44 | K69: =IF(В35!M34="","",В35!M34) -> 46 | L69: =IF(В35!N34="","",В35!N34) -> 46 | M69: =IF(В35!O34="","",В35!O34) -> 48 | N69: =IF(В35!P34="","",В35!P34) -> 2.142857143 | O69: =IF(В35!Q34="","",В35!Q34) -> 1.857142857 | P69: =IF(В35!R34="","",В35!R34) -> 45.85714286 | Q69: =IF(В35!S34="","",В35!S34) -> 2 | R69: =IF(В35!T34="","",В35!T34) -> 568.53 | S69: =IF(В35!U34="","",В35!U34) -> 54.01035 | T69: =IF(В35!V34="","",В35!V34) -> 60.27576481 | U69: =IF(В35!W34="","",В35!W34) ->  | V69: =IF(В35!X34="","",В35!X34) -> 1.149171828 | W69: =IF(В35!Y34="","",В35!Y34) ->  | X69: =IF(В35!Z34="","",В35!Z34) -> Отбраковывается
A70: =INDEX(В35!C$16:C$100,ROW(),COLUMN()) -> 0 | B70: =IF(В35!D35="","",В35!D35) ->  | C70: =IF(В35!E35="","",В35!E35) -> 20 | D70: =IF(В35!F35="","",В35!F35) -> 39 | E70: =IF(В35!G35="","",В35!G35) -> 41 | F70: =IF(В35!H35="","",В35!H35) -> 43 | G70: =IF(В35!I35="","",В35!I35) -> 40 | H70: =IF(В35!J35="","",В35!J35) -> 42 | I70: =IF(В35!K35="","",В35!K35) ->  | J70: =IF(В35!L35="","",В35!L35) -> 40 | K70: =IF(В35!M35="","",В35!M35) -> 39 | L70: =IF(В35!N35="","",В35!N35) -> 42 | M70: =IF(В35!O35="","",В35!O35) ->  | N70: =IF(В35!P35="","",В35!P35) -> 2.25 | O70: =IF(В35!Q35="","",В35!Q35) -> 1.75 | P70: =IF(В35!R35="","",В35!R35) -> 40.75 | Q70: =IF(В35!S35="","",В35!S35) -> 1 | R70: =IF(В35!T35="","",В35!T35) -> 543.23 | S70: =IF(В35!U35="","",В35!U35) -> 51.60685 | T70: =IF(В35!V35="","",В35!V35) -> 53.22397847 | U70: =IF(В35!W35="","",В35!W35) -> 50.3151185 | V70: =IF(В35!X35="","",В35!X35) -> 0.2966058172 | W70: =IF(В35!Y35="","",В35!Y35) -> -0.3520685704 | X70: =IF(В35!Z35="","",В35!Z35) -> 
A71: =INDEX(В35!C$16:C$100,ROW(),COLUMN()) -> 0 | B71: =IF(В35!D36="","",В35!D36) ->  | C71: =IF(В35!E36="","",В35!E36) -> 21 | D71: =IF(В35!F36="","",В35!F36) ->  | E71: =IF(В35!G36="","",В35!G36) -> 41 | F71: =IF(В35!H36="","",В35!H36) -> 39 | G71: =IF(В35!I36="","",В35!I36) -> 42 | H71: =IF(В35!J36="","",В35!J36) -> 41 | I71: =IF(В35!K36="","",В35!K36) -> 45 | J71: =IF(В35!L36="","",В35!L36) -> 42 | K71: =IF(В35!M36="","",В35!M36) -> 45 | L71: =IF(В35!N36="","",В35!N36) -> 43 | M71: =IF(В35!O36="","",В35!O36) -> 39 | N71: =IF(В35!P36="","",В35!P36) -> 3.111111111 | O71: =IF(В35!Q36="","",В35!Q36) -> 2.888888889 | P71: =IF(В35!R36="","",В35!R36) -> 41.88888889 | Q71: =IF(В35!S36="","",В35!S36) -> 1 | R71: =IF(В35!T36="","",В35!T36) -> 568.11 | S71: =IF(В35!U36="","",В35!U36) -> 53.97045 | T71: =IF(В35!V36="","",В35!V36) -> 54.79652135 | U71: =IF(В35!W36="","",В35!W36) -> 53.61269915 | V71: =IF(В35!X36="","",В35!X36) -> 0.1515139775 | W71: =IF(В35!Y36="","",В35!Y36) -> -0.09750697495 | X71: =IF(В35!Z36="","",В35!Z36) -> 
A72: =INDEX(В35!C$16:C$100,ROW(),COLUMN()) -> 0 | B72: =IF(В35!D37="","",В35!D37) ->  | C72: =IF(В35!E37="","",В35!E37) -> 22 | D72: =IF(В35!F37="","",В35!F37) -> 43 | E72: =IF(В35!G37="","",В35!G37) -> 38 | F72: =IF(В35!H37="","",В35!H37) -> 37 | G72: =IF(В35!I37="","",В35!I37) ->  | H72: =IF(В35!J37="","",В35!J37) -> 39 | I72: =IF(В35!K37="","",В35!K37) -> 43 | J72: =IF(В35!L37="","",В35!L37) -> 37 | K72: =IF(В35!M37="","",В35!M37) -> 43 | L72: =IF(В35!N37="","",В35!N37) -> 40 | M72: =IF(В35!O37="","",В35!O37) -> 39 | N72: =IF(В35!P37="","",В35!P37) -> 3.111111111 | O72: =IF(В35!Q37="","",В35!Q37) -> 2.888888889 | P72: =IF(В35!R37="","",В35!R37) -> 39.88888889 | Q72: =IF(В35!S37="","",В35!S37) -> 1 | R72: =IF(В35!T37="","",В35!T37) -> 575.23 | S72: =IF(В35!U37="","",В35!U37) -> 54.64685 | T72: =IF(В35!V37="","",В35!V37) -> 52.03498264 | U72: =IF(В35!W37="","",В35!W37) -> 47.82182581 | V72: =IF(В35!X37="","",В35!X37) -> -0.4790559731 | W72: =IF(В35!Y37="","",В35!Y37) -> -1.860198119 | X72: =IF(В35!Z37="","",В35!Z37) -> 
A73: =INDEX(В35!C$16:C$100,ROW(),COLUMN()) -> 0 | B73: =IF(В35!D38="","",В35!D38) ->  | C73: =IF(В35!E38="","",В35!E38) -> 23 | D73: =IF(В35!F38="","",В35!F38) -> 42 | E73: =IF(В35!G38="","",В35!G38) -> 41 | F73: =IF(В35!H38="","",В35!H38) ->  | G73: =IF(В35!I38="","",В35!I38) -> 40 | H73: =IF(В35!J38="","",В35!J38) -> 46 | I73: =IF(В35!K38="","",В35!K38) -> 39 | J73: =IF(В35!L38="","",В35!L38) -> 44 | K73: =IF(В35!M38="","",В35!M38) -> 42 | L73: =IF(В35!N38="","",В35!N38) -> 46 | M73: =IF(В35!O38="","",В35!O38) -> 43 | N73: =IF(В35!P38="","",В35!P38) -> 3.444444444 | O73: =IF(В35!Q38="","",В35!Q38) -> 3.555555556 | P73: =IF(В35!R38="","",В35!R38) -> 42.55555556 | Q73: =IF(В35!S38="","",В35!S38) -> 1 | R73: =IF(В35!T38="","",В35!T38) -> 576.57 | S73: =IF(В35!U38="","",В35!U38) -> 54.77415 | T73: =IF(В35!V38="","",В35!V38) -> 55.71703425 | U73: =IF(В35!W38="","",В35!W38) -> 55.54299026 | V73: =IF(В35!X38="","",В35!X38) -> 0.1729392304 | W73: =IF(В35!Y38="","",В35!Y38) -> 0.2095516682 | X73: =IF(В35!Z38="","",В35!Z38) -> 
A74: =INDEX(В35!C$16:C$100,ROW(),COLUMN()) -> 0 | B74: =IF(В35!D39="","",В35!D39) ->  | C74: =IF(В35!E39="","",В35!E39) -> 24 | D74: =IF(В35!F39="","",В35!F39) -> 44 | E74: =IF(В35!G39="","",В35!G39) -> 46 | F74: =IF(В35!H39="","",В35!H39) -> 46 | G74: =IF(В35!I39="","",В35!I39) -> 43 | H74: =IF(В35!J39="","",В35!J39) -> 42 | I74: =IF(В35!K39="","",В35!K39) -> 40 | J74: =IF(В35!L39="","",В35!L39) -> 43 | K74: =IF(В35!M39="","",В35!M39) -> 44 | L74: =IF(В35!N39="","",В35!N39) -> 43 | M74: =IF(В35!O39="","",В35!O39) -> 42 | N74: =IF(В35!P39="","",В35!P39) -> 2.7 | O74: =IF(В35!Q39="","",В35!Q39) -> 3.3 | P74: =IF(В35!R39="","",В35!R39) -> 43.3 | Q74: =IF(В35!S39="","",В35!S39) -> 2 | R74: =IF(В35!T39="","",В35!T39) -> 648.29 | S74: =IF(В35!U39="","",В35!U39) -> 61.58755 | T74: =IF(В35!V39="","",В35!V39) -> 56.74494032 | U74: =IF(В35!W39="","",В35!W39) -> 57.698482 | V74: =IF(В35!X39="","",В35!X39) -> -0.8882078488 | W74: =IF(В35!Y39="","",В35!Y39) -> -1.059987009 | X74: =IF(В35!Z39="","",В35!Z39) -> 
A75: =INDEX(В35!C$16:C$100,ROW(),COLUMN()) -> 0 | B75: =IF(В35!D40="","",В35!D40) ->  | C75: =IF(В35!E40="","",В35!E40) -> 25 | D75: =IF(В35!F40="","",В35!F40) -> 43 | E75: =IF(В35!G40="","",В35!G40) -> 45 | F75: =IF(В35!H40="","",В35!H40) -> 44 | G75: =IF(В35!I40="","",В35!I40) -> 47 | H75: =IF(В35!J40="","",В35!J40) -> 48 | I75: =IF(В35!K40="","",В35!K40) -> 47 | J75: =IF(В35!L40="","",В35!L40) -> 46 | K75: =IF(В35!M40="","",В35!M40) -> 48 | L75: =IF(В35!N40="","",В35!N40) -> 47 | M75: =IF(В35!O40="","",В35!O40) -> 45 | N75: =IF(В35!P40="","",В35!P40) -> 2 | O75: =IF(В35!Q40="","",В35!Q40) -> 3 | P75: =IF(В35!R40="","",В35!R40) -> 46 | Q75: =IF(В35!S40="","",В35!S40) -> 2 | R75: =IF(В35!T40="","",В35!T40) -> 587.2 | S75: =IF(В35!U40="","",В35!U40) -> 55.784 | T75: =IF(В35!V40="","",В35!V40) -> 60.47301758 | U75: =IF(В35!W40="","",В35!W40) ->  | V75: =IF(В35!X40="","",В35!X40) -> 0.8600367354 | W75: =IF(В35!Y40="","",В35!Y40) ->  | X75: =IF(В35!Z40="","",В35!Z40) -> Отбраковывается
A76: =INDEX(В35!C$16:C$100,ROW(),COLUMN()) -> 0 | B76: =IF(В35!D41="","",В35!D41) ->  | C76: =IF(В35!E41="","",В35!E41) -> 26 | D76: =IF(В35!F41="","",В35!F41) -> 47 | E76: =IF(В35!G41="","",В35!G41) -> 48 | F76: =IF(В35!H41="","",В35!H41) -> 47 | G76: =IF(В35!I41="","",В35!I41) -> 45 | H76: =IF(В35!J41="","",В35!J41) -> 46 | I76: =IF(В35!K41="","",В35!K41) -> 45 | J76: =IF(В35!L41="","",В35!L41) -> 47 | K76: =IF(В35!M41="","",В35!M41) -> 45 | L76: =IF(В35!N41="","",В35!N41) -> 47 | M76: =IF(В35!O41="","",В35!O41) -> 46 | N76: =IF(В35!P41="","",В35!P41) -> 1.7 | O76: =IF(В35!Q41="","",В35!Q41) -> 1.3 | P76: =IF(В35!R41="","",В35!R41) -> 46.3 | Q76: =IF(В35!S41="","",В35!S41) -> 2 | R76: =IF(В35!T41="","",В35!T41) -> 701.26 | S76: =IF(В35!U41="","",В35!U41) -> 66.6197 | T76: =IF(В35!V41="","",В35!V41) -> 60.88724839 | U76: =IF(В35!W41="","",В35!W41) -> 66.384792 | V76: =IF(В35!X41="","",В35!X41) -> -1.051418317 | W76: =IF(В35!Y41="","",В35!Y41) -> -0.06402547496 | X76: =IF(В35!Z41="","",В35!Z41) -> 
A77: =INDEX(В35!C$16:C$100,ROW(),COLUMN()) -> 0 | B77: =IF(В35!D42="","",В35!D42) ->  | C77: =IF(В35!E42="","",В35!E42) -> 27 | D77: =IF(В35!F42="","",В35!F42) -> 48 | E77: =IF(В35!G42="","",В35!G42) -> 47 | F77: =IF(В35!H42="","",В35!H42) -> 45 | G77: =IF(В35!I42="","",В35!I42) -> 49 | H77: =IF(В35!J42="","",В35!J42) -> 42 | I77: =IF(В35!K42="","",В35!K42) -> 46 | J77: =IF(В35!L42="","",В35!L42) -> 42 | K77: =IF(В35!M42="","",В35!M42) -> 47 | L77: =IF(В35!N42="","",В35!N42) -> 46 | M77: =IF(В35!O42="","",В35!O42) -> 45 | N77: =IF(В35!P42="","",В35!P42) -> 3.3 | O77: =IF(В35!Q42="","",В35!Q42) -> 3.7 | P77: =IF(В35!R42="","",В35!R42) -> 45.7 | Q77: =IF(В35!S42="","",В35!S42) -> 2 | R77: =IF(В35!T42="","",В35!T42) -> 722.09 | S77: =IF(В35!U42="","",В35!U42) -> 68.59855 | T77: =IF(В35!V42="","",В35!V42) -> 60.05878677 | U77: =IF(В35!W42="","",В35!W42) -> 64.64753 | V77: =IF(В35!X42="","",В35!X42) -> -1.566321722 | W77: =IF(В35!Y42="","",В35!Y42) -> -1.076872369 | X77: =IF(В35!Z42="","",В35!Z42) -> 
A78: =INDEX(В35!C$16:C$100,ROW(),COLUMN()) -> 0 | B78: =IF(В35!D43="","",В35!D43) ->  | C78: =IF(В35!E43="","",В35!E43) -> 28 | D78: =IF(В35!F43="","",В35!F43) -> 43 | E78: =IF(В35!G43="","",В35!G43) -> 44 | F78: =IF(В35!H43="","",В35!H43) -> 46 | G78: =IF(В35!I43="","",В35!I43) -> 43 | H78: =IF(В35!J43="","",В35!J43) -> 44 | I78: =IF(В35!K43="","",В35!K43) -> 45 | J78: =IF(В35!L43="","",В35!L43) -> 45 | K78: =IF(В35!M43="","",В35!M43) -> 42 | L78: =IF(В35!N43="","",В35!N43) -> 42 | M78: =IF(В35!O43="","",В35!O43) -> 42 | N78: =IF(В35!P43="","",В35!P43) -> 2.4 | O78: =IF(В35!Q43="","",В35!Q43) -> 1.6 | P78: =IF(В35!R43="","",В35!R43) -> 43.6 | Q78: =IF(В35!S43="","",В35!S43) -> 2 | R78: =IF(В35!T43="","",В35!T43) -> 645.7 | S78: =IF(В35!U43="","",В35!U43) -> 61.3415 | T78: =IF(В35!V43="","",В35!V43) -> 57.15917113 | U78: =IF(В35!W43="","",В35!W43) -> 58.567113 | V78: =IF(В35!X43="","",В35!X43) -> -0.7671023636 | W78: =IF(В35!Y43="","",В35!Y43) -> -0.756174533 | X78: =IF(В35!Z43="","",В35!Z43) -> 
A79: =INDEX(В35!C$16:C$100,ROW(),COLUMN()) -> 0 | B79: =IF(В35!D44="","",В35!D44) ->  | C79: =IF(В35!E44="","",В35!E44) -> 29 | D79: =IF(В35!F44="","",В35!F44) -> 44 | E79: =IF(В35!G44="","",В35!G44) ->  | F79: =IF(В35!H44="","",В35!H44) -> 40 | G79: =IF(В35!I44="","",В35!I44) -> 41 | H79: =IF(В35!J44="","",В35!J44) -> 43 | I79: =IF(В35!K44="","",В35!K44) -> 40 | J79: =IF(В35!L44="","",В35!L44) ->  | K79: =IF(В35!M44="","",В35!M44) -> 40 | L79: =IF(В35!N44="","",В35!N44) -> 43 | M79: =IF(В35!O44="","",В35!O44) -> 39 | N79: =IF(В35!P44="","",В35!P44) -> 2.75 | O79: =IF(В35!Q44="","",В35!Q44) -> 2.25 | P79: =IF(В35!R44="","",В35!R44) -> 41.25 | Q79: =IF(В35!S44="","",В35!S44) -> 1 | R79: =IF(В35!T44="","",В35!T44) -> 640.07 | S79: =IF(В35!U44="","",В35!U44) -> 60.80665 | T79: =IF(В35!V44="","",В35!V44) -> 53.91436315 | U79: =IF(В35!W44="","",В35!W44) ->  | V79: =IF(В35!X44="","",В35!X44) -> -1.26414964 | W79: =IF(В35!Y44="","",В35!Y44) ->  | X79: =IF(В35!Z44="","",В35!Z44) -> Отбраковывается
A80: =INDEX(В35!C$16:C$100,ROW(),COLUMN()) -> 0 | B80: =IF(В35!D45="","",В35!D45) ->  | C80: =IF(В35!E45="","",В35!E45) -> 30 | D80: =IF(В35!F45="","",В35!F45) -> 38 | E80: =IF(В35!G45="","",В35!G45) -> 40 | F80: =IF(В35!H45="","",В35!H45) -> 44 | G80: =IF(В35!I45="","",В35!I45) -> 40 | H80: =IF(В35!J45="","",В35!J45) -> 37 | I80: =IF(В35!K45="","",В35!K45) -> 39 | J80: =IF(В35!L45="","",В35!L45) -> 42 | K80: =IF(В35!M45="","",В35!M45) -> 40 | L80: =IF(В35!N45="","",В35!N45) -> 40 | M80: =IF(В35!O45="","",В35!O45) -> 41 | N80: =IF(В35!P45="","",В35!P45) -> 3.9 | O80: =IF(В35!Q45="","",В35!Q45) -> 3.1 | P80: =IF(В35!R45="","",В35!R45) -> 40.1 | Q80: =IF(В35!S45="","",В35!S45) -> 1 | R80: =IF(В35!T45="","",В35!T45) -> 568.68 | S80: =IF(В35!U45="","",В35!U45) -> 54.0246 | T80: =IF(В35!V45="","",В35!V45) -> 52.32647839 | U80: =IF(В35!W45="","",В35!W45) -> 48.43308467 | V80: =IF(В35!X45="","",В35!X45) -> -0.3114611836 | W80: =IF(В35!Y45="","",В35!Y45) -> -1.523998454 | X80: =IF(В35!Z45="","",В35!Z45) -> 
A81: =INDEX(В35!C$16:C$100,ROW(),COLUMN()) -> 0 | B81: =IF(В35!D46="","",В35!D46) ->  | C81: =IF(В35!E46="","",В35!E46) -> 31 | D81: =IF(В35!F46="","",В35!F46) -> 42 | E81: =IF(В35!G46="","",В35!G46) -> 42 | F81: =IF(В35!H46="","",В35!H46) -> 41 | G81: =IF(В35!I46="","",В35!I46) -> 44 | H81: =IF(В35!J46="","",В35!J46) -> 44 | I81: =IF(В35!K46="","",В35!K46) -> 43 | J81: =IF(В35!L46="","",В35!L46) -> 42 | K81: =IF(В35!M46="","",В35!M46) -> 43 | L81: =IF(В35!N46="","",В35!N46) -> 41 | M81: =IF(В35!O46="","",В35!O46) -> 44 | N81: =IF(В35!P46="","",В35!P46) -> 1.4 | O81: =IF(В35!Q46="","",В35!Q46) -> 1.6 | P81: =IF(В35!R46="","",В35!R46) -> 42.6 | Q81: =IF(В35!S46="","",В35!S46) -> 1 | R81: =IF(В35!T46="","",В35!T46) -> 630.84 | S81: =IF(В35!U46="","",В35!U46) -> 59.9298 | T81: =IF(В35!V46="","",В35!V46) -> 55.77840178 | U81: =IF(В35!W46="","",В35!W46) -> 55.67167633 | V81: =IF(В35!X46="","",В35!X46) -> -0.7614292154 | W81: =IF(В35!Y46="","",В35!Y46) -> -1.160575174 | X81: =IF(В35!Z46="","",В35!Z46) -> 
A82: =INDEX(В35!C$16:C$100,ROW(),COLUMN()) -> 0 | B82: =IF(В35!D47="","",В35!D47) ->  | C82: =IF(В35!E47="","",В35!E47) -> 32 | D82: =IF(В35!F47="","",В35!F47) -> 43 | E82: =IF(В35!G47="","",В35!G47) -> 41 | F82: =IF(В35!H47="","",В35!H47) -> 42 | G82: =IF(В35!I47="","",В35!I47) ->  | H82: =IF(В35!J47="","",В35!J47) ->  | I82: =IF(В35!K47="","",В35!K47) -> 42 | J82: =IF(В35!L47="","",В35!L47) -> 42 | K82: =IF(В35!M47="","",В35!M47) -> 41 | L82: =IF(В35!N47="","",В35!N47) -> 43 | M82: =IF(В35!O47="","",В35!O47) -> 43 | N82: =IF(В35!P47="","",В35!P47) -> 0.875 | O82: =IF(В35!Q47="","",В35!Q47) -> 1.125 | P82: =IF(В35!R47="","",В35!R47) -> 42.125 | Q82: =IF(В35!S47="","",В35!S47) -> 1 | R82: =IF(В35!T47="","",В35!T47) -> 533.72 | S82: =IF(В35!U47="","",В35!U47) -> 50.7034 | T82: =IF(В35!V47="","",В35!V47) -> 55.12253633 | U82: =IF(В35!W47="","",В35!W47) -> 54.29634392 | V82: =IF(В35!X47="","",В35!X47) -> 0.8105364334 | W82: =IF(В35!Y47="","",В35!Y47) -> 0.9792767515 | X82: =IF(В35!Z47="","",В35!Z47) -> 
A87: =В35!B3 -> Инженер строительной лаборатории: | V87: =В35!B4 -> / И.П. Собакин /
A88: Примечание:
A89: =В35!B9 -> 0
A90: =В35!B10 -> 0
A93: ПРИЛОЖЕНИЕ №2
A94: Методика устонавления градуировочной зависимости
A95: 1. Уравнение зависимости "косвенная характеристика - прочность" принимают линейным по формуле:
A98: 2. Вычисление значения коэффициентов а и b по формулам:
A105: 3. Средние значения прочности бетона косвенной характеристики рассчитывают по формулам:
A114: 4. После построения градуировочной зависимости по формуле (1) проводят ее корректировку путем отбраковки единичных результатов испытаний, не удовлетворяющих условию:
A118: 5. S - остаточное среднеквадратическое отклонение, рассчитываемое по формуле:
A123: 6. Коэффициент корреляции градуировочной зависимости r по формуле:
A129: 7. Среднее значение прочности бетона по градуировочной зависимости рассчитывают по формуле:
A141: =В35!B3 -> Инженер строительной лаборатории: | V141: =В35!B4 -> / И.П. Собакин /
A143: Примечание:
A144: =В35!B9 -> 0
A145: =В35!B10 -> 0
A149: ПРИЛОЖЕНИЕ №3
A174: =В35!B3 -> Инженер строительной лаборатории: | V174: =В35!B4 -> / И.П. Собакин /
A176: Примечание:
A177: =В35!B9 -> 0
A178: =В35!B10 -> 0

Sheet Класс (hidden)
A1: Класс
A2: В15
A3: В20
A4: В22,5
A5: В25
A6: В30
A7: В35
A8: В40
A9: В45
A10: В50

Sheet Логотип (hidden)
A1: Наименование | B1: Логотип | C1: Столбец1

Sheet Сотрудники (hidden)
A1: Компания | B1: Должность | C1: Ф.И.О

Sheet Условие 6.1.7 (hidden)
B2: МПА
B3: 1 | C3: 0.5 | D3: 1.5 | E3: среднего значения прочности бетона при ≤ 20 Мпа
B4: 2 | C4: 0.5 | D4: 1.5 | E4: среднего значения прочности бетона при ≤ 20 Мпа
B5: 3 | C5: 0.5 | D5: 1.5 | E5: среднего значения прочности бетона при ≤ 20 Мпа
B6: 4 | C6: 0.5 | D6: 1.5 | E6: среднего значения прочности бетона при ≤ 20 Мпа
B7: 5 | C7: 0.5 | D7: 1.5 | E7: среднего значения прочности бетона при ≤ 20 Мпа
B8: 6 | C8: 0.5 | D8: 1.5 | E8: среднего значения прочности бетона при ≤ 20 Мпа
B9: 7 | C9: 0.5 | D9: 1.5 | E9: среднего значения прочности бетона при ≤ 20 Мпа
B10: 8 | C10: 0.5 | D10: 1.5 | E10: среднего значения прочности бетона при ≤ 20 Мпа
B11: 9 | C11: 0.5 | D11: 1.5 | E11: среднего значения прочности бетона при ≤ 20 Мпа
B12: 10 | C12: 0.5 | D12: 1.5 | E12: среднего значения прочности бетона при ≤ 20 Мпа
B13: 11 | C13: 0.5 | D13: 1.5 | E13: среднего значения прочности бетона при ≤ 20 Мпа
B14: 12 | C14: 0.5 | D14: 1.5 | E14: среднего значения прочности бетона при ≤ 20 Мпа
B15: 13 | C15: 0.5 | D15: 1.5 | E15: среднего значения прочности бетона при ≤ 20 Мпа
B16: 14 | C16: 0.5 | D16: 1.5 | E16: среднего значения прочности бетона при ≤ 20 Мпа
B17: 15 | C17: 0.5 | D17: 1.5 | E17: среднего значения прочности бетона при ≤ 20 Мпа
B18: 16 | C18: 0.5 | D18: 1.5 | E18: среднего значения прочности бетона при ≤ 20 Мпа
B19: 17 | C19: 0.5 | D19: 1.5 | E19: среднего значения прочности бетона при ≤ 20 Мпа
B20: 18 | C20: 0.5 | D20: 1.5 | E20: среднего значения прочности бетона при ≤ 20 Мпа
B21: 19 | C21: 0.5 | D21: 1.5 | E21: среднего значения прочности бетона при ≤ 20 Мпа
B22: 20 | C22: 0.5 | D22: 1.5 | E22: среднего значения прочности бетона при ≤ 20 Мпа
B23: 21 | C23: 0.6 | D23: 1.4 | E23: среднего значения прочности бетона при ≤ 50 Мпа
B24: 22 | C24: 0.6 | D24: 1.4 | E24: среднего значения прочности бетона при ≤ 50 Мпа
B25: 23 | C25: 0.6 | D25: 1.4 | E25: среднего значения прочности бетона при ≤ 50 Мпа
B26: 24 | C26: 0.6 | D26: 1.4 | E26: среднего значения прочности бетона при ≤ 50 Мпа
B27: 25 | C27: 0.6 | D27: 1.4 | E27: среднего значения прочности бетона при ≤ 50 Мпа
B28: 26 | C28: 0.6 | D28: 1.4 | E28: среднего значения прочности бетона при ≤ 50 Мпа
B29: 27 | C29: 0.6 | D29: 1.4 | E29: среднего значения прочности бетона при ≤ 50 Мпа
B30: 28 | C30: 0.6 | D30: 1.4 | E30: среднего значения прочности бетона при ≤ 50 Мпа
B31: 29 | C31: 0.6 | D31: 1.4 | E31: среднего значения прочности бетона при ≤ 50 Мпа
B32: 30 | C32: 0.6 | D32: 1.4 | E32: среднего значения прочности бетона при ≤ 50 Мпа
B33: 31 | C33: 0.6 | D33: 1.4 | E33: среднего значения прочности бетона при ≤ 50 Мпа
B34: 32 | C34: 0.6 | D34: 1.4 | E34: среднего значения прочности бетона при ≤ 50 Мпа
B35: 33 | C35: 0.6 | D35: 1.4 | E35: среднего значения прочности бетона при ≤ 50 Мпа
B36: 34 | C36: 0.6 | D36: 1.4 | E36: среднего значения прочности бетона при ≤ 50 Мпа
B37: 35 | C37: 0.6 | D37: 1.4 | E37: среднего значения прочности бетона при ≤ 50 Мпа
B38: 36 | C38: 0.6 | D38: 1.4 | E38: среднего значения прочности бетона при ≤ 50 Мпа
B39: 37 | C39: 0.6 | D39: 1.4 | E39: среднего значения прочности бетона при ≤ 50 Мпа
B40: 38 | C40: 0.6 | D40: 1.4 | E40: среднего значения прочности бетона при ≤ 50 Мпа
B41: 39 | C41: 0.6 | D41: 1.4 | E41: среднего значения прочности бетона при ≤ 50 Мпа
B42: 40 | C42: 0.6 | D42: 1.4 | E42: среднего значения прочности бетона при ≤ 50 Мпа
B43: 41 | C43: 0.6 | D43: 1.4 | E43: среднего значения прочности бетона при ≤ 50 Мпа
B44: 42 | C44: 0.6 | D44: 1.4 | E44: среднего значения прочности бетона при ≤ 50 Мпа
B45: 43 | C45: 0.6 | D45: 1.4 | E45: среднего значения прочности бетона при ≤ 50 Мпа
B46: 44 | C46: 0.6 | D46: 1.4 | E46: среднего значения прочности бетона при ≤ 50 Мпа
B47: 45 | C47: 0.6 | D47: 1.4 | E47: среднего значения прочности бетона при ≤ 50 Мпа
B48: 46 | C48: 0.6 | D48: 1.4 | E48: среднего значения прочности бетона при ≤ 50 Мпа
B49: 47 | C49: 0.6 | D49: 1.4 | E49: среднего значения прочности бетона при ≤ 50 Мпа
B50: 48 | C50: 0.6 | D50: 1.4 | E50: среднего значения прочности бетона при ≤ 50 Мпа
B51: 49 | C51: 0.6 | D51: 1.4 | E51: среднего значения прочности бетона при ≤ 50 Мпа
B52: 50 | C52: 0.6 | D52: 1.4 | E52: среднего значения прочности бетона при ≤ 50 Мпа
B53: 51 | C53: 0.7 | D53: 1.3 | E53: среднего значения прочности бетона при ≤ 80 Мпа
B54: 52 | C54: 0.7 | D54: 1.3 | E54: среднего значения прочности бетона при ≤ 80 Мпа
B55: 53 | C55: 0.7 | D55: 1.3 | E55: среднего значения прочности бетона при ≤ 80 Мпа
B56: 54 | C56: 0.7 | D56: 1.3 | E56: среднего значения прочности бетона при ≤ 80 Мпа
B57: 55 | C57: 0.7 | D57: 1.3 | E57: среднего значения прочности бетона при ≤ 80 Мпа
B58: 56 | C58: 0.7 | D58: 1.3 | E58: среднего значения прочности бетона при ≤ 80 Мпа
B59: 57 | C59: 0.7 | D59: 1.3 | E59: среднего значения прочности бетона при ≤ 80 Мпа
B60: 58 | C60: 0.7 | D60: 1.3 | E60: среднего значения прочности бетона при ≤ 80 Мпа
B61: 59 | C61: 0.7 | D61: 1.3 | E61: среднего значения прочности бетона при ≤ 80 Мпа
B62: 60 | C62: 0.7 | D62: 1.3 | E62: среднего значения прочности бетона при ≤ 80 Мпа
B63: 61 | C63: 0.7 | D63: 1.3 | E63: среднего значения прочности бетона при ≤ 80 Мпа
B64: 62 | C64: 0.7 | D64: 1.3 | E64: среднего значения прочности бетона при ≤ 80 Мпа
B65: 63 | C65: 0.7 | D65: 1.3 | E65: среднего значения прочности бетона при ≤ 80 Мпа
B66: 64 | C66: 0.7 | D66: 1.3 | E66: среднего значения прочности бетона при ≤ 80 Мпа
B67: 65 | C67: 0.7 | D67: 1.3 | E67: среднего значения прочности бетона при ≤ 80 Мпа
B68: 66 | C68: 0.7 | D68: 1.3 | E68: среднего значения прочности бетона при ≤ 80 Мпа
B69: 67 | C69: 0.7 | D69: 1.3 | E69: среднего значения прочности бетона при ≤ 80 Мпа
B70: 68 | C70: 0.7 | D70: 1.3 | E70: среднего значения прочности бетона при ≤ 80 Мпа
B71: 69 | C71: 0.7 | D71: 1.3 | E71: среднего значения прочности бетона при ≤ 80 Мпа
B72: 70 | C72: 0.7 | D72: 1.3 | E72: среднего значения прочности бетона при ≤ 80 Мпа
B73: 71 | C73: 0.7 | D73: 1.3 | E73: среднего значения прочности бетона при ≤ 80 Мпа
B74: 72 | C74: 0.7 | D74: 1.3 | E74: среднего значения прочности бетона при ≤ 80 Мпа
B75: 73 | C75: 0.7 | D75: 1.3 | E75: среднего значения прочности бетона при ≤ 80 Мпа
B76: 74 | C76: 0.7 | D76: 1.3 | E76: среднего значения прочности бетона при ≤ 80 Мпа
B77: 75 | C77: 0.7 | D77: 1.3 | E77: среднего значения прочности бетона при ≤ 80 Мпа
B78: 76 | C78: 0.7 | D78: 1.3 | E78: среднего значения прочности бетона при ≤ 80 Мпа
B79: 77 | C79: 0.7 | D79: 1.3 | E79: среднего значения прочности бетона при ≤ 80 Мпа
B80: 78 | C80: 0.7 | D80: 1.3 | E80: среднего значения прочности бетона при ≤ 80 Мпа
B81: 79 | C81: 0.7 | D81: 1.3 | E81: среднего значения прочности бетона при ≤ 80 Мпа
B82: 80 | C82: 0.7 | D82: 1.3 | E82: среднего значения прочности бетона при ≤ 80 Мпа
B83: 81 | C83: 0.8 | D83: 1.2 | E83: среднего значения прочности бетона при > 80 Мпа
